Cogmind - Beta 16 @@@ ROGUE MODE // 2025.11.15 @ 03:08:28 Player: McSaucyNugget Result: Destroyed 0b10! Performance ------------- Evolutions (9) 4500 Regions Visited (41) 8200 Robots Destroyed (724) 3620 Value Destroyed (41845) 41845 Prototype IDs (78) 1560 Alien Tech Used (15) 3000 Bonus (49918) 49918 TOTAL SCORE: 112643 Bonus ------- Triggered Max Security 2000 High Alert Combat Kills 9970 Follower Combat Kills 4246 Entered Garrisons 1200 Network Hubs Disabled 200 Destroyed Z-Imprinter 1000 Triggered Deep Caves Wall 500 Exposed GOLEM Chamber 500 Acquired ECA 300 Met Zhirov 300 Met Warlord at Base 500 MAIN.C Attacked Warlord 500 Warlord Defense Kills 6448 Built Enhanced Grunts 300 A7 Reached Mainframe 300 Met R17 at Cetus 500 Used Core Reset Matrix 3000 Met R17 at Research 2000 Scanned by Researcher 500 Met Sigix 2000 Activated Exoskeleton 3000 Escaped with Exo-Sigix 10000 Win 3000 Friendly Fire -2346 Cogmind --------- Core Integrity 1836/1850 Matter 300/300 Energy 2178/2200 System Corruption 0% +Membrane Temperature Cool (7) +ITN Movement Walking (122) Location Tau Ceti IV Orbit Parts ------- > --- POWER (3) -------- Improved Quantum Reactor Vortex Chain Reactor > --- PROPULSION (6) --- Improved Thunder Leg Assembled Alloy Leg Assembled Alloy Leg Centrium Leg Centrium Leg Centrium Leg > --- UTILITY (13) ----- High-capacity Storage Unit Assembled Biocell Array Experimental Optical Array Long-range Terrain Scanner Experimental Terrain Scan Processor Assembled Combat Suite Assembled Alloy Armor Heavy Regenerative Plating Graphene Brace AEGIS Remote Shield GOLEM Unit > --- WEAPON (3) ------- Assembled Focal Cannon Assembled Focal Cannon Assembled Focal Cannon > --- INVENTORY (20) --- Vortex Chain Reactor Myomer Leg Biometal Leg Biometal Leg Biometal Leg Enhanced Biometal Leg Centrium Leg Centrium Leg Experimental Energy Well (202) Experimental Energy Well (0) Experimental Energy Well (0) Improved Matter Compressor (300) Experimental EM Shield Hacking Drone Bay (1/1) Microwarp Drive Gamma Bomb Array Peak State ------------ > --- POWER ------------ Improved Quantum Reactor Vortex Chain Reactor > --- PROPULSION ------- Improved Thunder Leg Assembled Alloy Leg Assembled Alloy Leg Centrium Leg Centrium Leg Centrium Leg > --- UTILITY ---------- High-capacity Storage Unit Assembled Biocell Array Experimental Optical Array Experimental Terrain Scan Processor Assembled Combat Suite Assembled Alloy Armor GOLEM Unit Microwarp Drive > --- WEAPON ----------- Assembled Focal Cannon Assembled Focal Cannon Assembled Focal Cannon > --- INVENTORY -------- Vortex Chain Reactor Enhanced Biometal Leg Centrium Leg Experimental Energy Well Experimental Energy Well Experimental Energy Well Improved Matter Compressor Long-range Terrain Scanner Heavy Regenerative Plating Graphene Brace Experimental EM Shield AEGIS Remote Shield Hacking Drone Bay High-powered Transdimensional Reconstructor Subatomic Replicator Gamma Bomb Array Sigix Containment Pod [Rating: 230] Favorites ----------- Power Assembled Flux Generator Engine Light Angular Momentum Engine Power Core Enhanced Nuclear Core Reactor Assembled Flux Generator Propulsion Assembled Alloy Leg Treads Light Treads Leg Assembled Alloy Leg Wheel Wheel Flight Unit Improved VTOL Module Utility High-capacity Storage Unit Device GOLEM Unit Storage High-capacity Storage Unit Processor Experimental Optical Array Hackware Makeshift Hacking Suite Protection Improved Medium Armor Plating Artifact Microwarp Drive Weapon Assembled Focal Cannon Energy Gun Zionite Laser-M Energy Cannon Assembled Focal Cannon Ballistic Gun Enhanced Autogun Ballistic Cannon Flak Cannon Launcher Heavy Missile Launcher Impact Weapon Core Stripper Slashing Weapon Great Axe Build | -11 -10 -9 -8 -8 -8 -8 -8 -8 -7 -7 -7 -7 -7 -6 -6 -6 -6 -6 -6 -5 -5 -5 -5 -5 -5 -5 -5 -5 -5 -4 -4 -4 -4 -4 -3 -3 -3 -2 -2 -2 -1 ------- Run | Yrd Mat Mat Mat Gar Mat Gar Mat Gar Fac Low Low Zio Dee Pro Fac Ext Cet Arc Hub Fac Gar Fac Gar Fac Gar Fac Upp Upp Zhi Pro Fac Upp Upp War Pro Res Tes Res Qua Sec Acc Slots Evolved 18 | . . 2 2 . . . . . 2 . . . . . 2 . . . . 2 . . . . . . . . . . 2 . . . . 2 . 2 . . 2 Power 2 | . . . . . . . . . . . . . . . 1 . . . . . . . . . . . . . . . . . . . . . . 1 . . . Propulsion 4 | . . . 2 . . . . . . . . . . . 1 . . . . . . . . . . . . . . . . . . . . 1 . . . . . Utility 11 | . . 2 . . . . . . 1 . . . . . . . . . . 2 . . . . . . . . . . 2 . . . . 1 . 1 . . 2 Weapon 1 | . . . . . . . . . 1 . . . . . . . . . . . . . . . . . . . . . . . . . . . . . . . . Parts Attached 323 | 6 6 22 27 23 10 8 9 16 16 3 2 10 33 . 5 4 6 . . 1 7 5 8 4 1 1 1 . 2 . 8 . 2 14 . 3 9 7 32 12 . Power 33 | 1 . 4 2 5 . 1 2 3 1 1 . 1 2 . 1 1 2 . . . . . . . . . . . . . . . . . . . 1 1 3 1 . Engine 9 | 1 . 4 1 3 . . . . . . . . . . . . . . . . . . . . . . . . . . . . . . . . . . . . . Core 13 | . . . 1 2 . 1 2 3 1 1 . 1 . . . 1 . . . . . . . . . . . . . . . . . . . . . . . . . Reactor 11 | . . . . . . . . . . . . . 2 . 1 . 2 . . . . . . . . . . . . . . . . . . . 1 1 3 1 . Propulsion 78 | 2 2 6 8 6 4 3 4 7 3 2 . 1 3 . 2 . . . . . 4 . 4 1 . . . . . . 2 . . 4 . 2 . 2 3 3 . Treads 31 | 2 . 3 7 6 4 3 4 2 . . . . . . . . . . . . . . . . . . . . . . . . . . . . . . . . . Leg 41 | . . . . . . . . 5 3 2 . 1 3 . 2 . . . . . 4 . 4 1 . . . . . . 2 . . 4 . 2 . 2 3 3 . Wheel 5 | . 2 3 . . . . . . . . . . . . . . . . . . . . . . . . . . . . . . . . . . . . . . . Hover . | . . . . . . . . . . . . . . . . . . . . . . . . . . . . . . . . . . . . . . . . . . Flight 1 | . . . 1 . . . . . . . . . . . . . . . . . . . . . . . . . . . . . . . . . . . . . . Utility 150 | 1 3 8 11 4 4 1 1 3 8 . . 7 21 . 2 1 2 . . 1 3 4 3 3 1 1 1 . 2 . 6 . 2 8 . 1 5 3 21 8 . Device 74 | . . 3 6 2 . . . 2 6 . . 1 12 . . . . . . 1 1 2 1 1 1 . 1 . 1 . 2 . 2 3 . . 2 . 18 6 . Storage 15 | 1 2 . 2 . . . . . . . . . 2 . . 1 . . . . 1 . 1 . . . . . . . 1 . . 1 . . . . 2 1 . Processor 19 | . 1 . . . 1 . . . 1 . . 5 . . . . . . . . . 2 . . . 1 . . . . 1 . . 2 . 1 . 3 1 . . Hackware 4 | . . . . . . . . . . . . . . . 1 . . . . . . . . . . . . . . . 2 . . . . . 1 . . . . Protection 37 | . . 5 3 2 3 1 1 1 1 . . 1 7 . 1 . 2 . . . 1 . 1 2 . . . . 1 . . . . 2 . . 2 . . . . Artifact 1 | . . . . . . . . . . . . . . . . . . . . . . . . . . . . . . . . . . . . . . . . 1 . Weapon 62 | 2 1 4 6 8 2 3 2 3 4 . 2 1 7 . . 2 2 . . . . 1 1 . . . . . . . . . . 2 . . 3 1 5 . . Energy Gun 13 | 2 . . 1 . . . 1 . . . 1 1 5 . . . . . . . . . . . . . . . . . . . . . . . 2 . . . . Energy Cannon 12 | . . 2 1 2 1 1 . . . . . . 2 . . . . . . . . 1 . . . . . . . . . . . 1 . . . . 1 . . Ballistic Gun 22 | . 1 1 2 4 1 1 1 2 3 . . . . . . 2 2 . . . . . 1 . . . . . . . . . . 1 . . . . . . . Ballistic Cannon 7 | . . 1 2 . . . . . . . . . . . . . . . . . . . . . . . . . . . . . . . . . . 1 3 . . Launcher 5 | . . . . 2 . 1 . 1 . . . . . . . . . . . . . . . . . . . . . . . . . . . . 1 . . . . Special Weapon . | . . . . . . . . . . . . . . . . . . . . . . . . . . . . . . . . . . . . . . . . . . Impact Weapon 1 | . . . . . . . . . . . . . . . . . . . . . . . . . . . . . . . . . . . . . . . 1 . . Slashing Weapon 2 | . . . . . . . . . 1 . 1 . . . . . . . . . . . . . . . . . . . . . . . . . . . . . . Piercing Weapon . | . . . . . . . . . . . . . . . . . . . . . . . . . . . . . . . . . . . . . . . . . . Special Melee Weapon . | . . . . . . . . . . . . . . . . . . . . . . . . . . . . . . . . . . . . . . . . . . Unidentified Prototypes 58 | . . . 1 . 1 . 1 . 1 . . 5 13 . . 1 2 . . . 3 1 . . . . . . 2 . . . . 5 . . 5 2 13 2 . Corrupted Parts 2 | . . . . . . . . . . . . . . . . . . . . . 1 1 . . . . . . . . . . . . . . . . . . . System Corruption 23 | . . . . . . . . . . . . . . . . . . . . . 10 13 . . . . . . . . . . . . . . . . . . . Parts Lost 85 | . 3 9 5 9 2 8 . 13 2 . . . 4 . . 2 1 . . . . . 4 1 6 . . . . . 1 . . 2 . . 1 . 12 . . Power 11 | . . 2 1 2 1 1 . 2 . . . . . . . 1 . . . . . . . . . . . . . . . . . . . . . . 1 . . Propulsion 29 | . 3 3 1 4 . 4 . 5 . . . . 2 . . . . . . . . . 2 1 2 . . . . . . . . . . . . . 2 . . Utility 25 | . . 3 1 3 1 1 . 4 1 . . . 2 . . . . . . . . . . . 2 . . . . . 1 . . . . . 1 . 5 . . Weapon 20 | . . 1 2 . . 2 . 2 1 . . . . . . 1 1 . . . . . 2 . 2 . . . . . . . . 2 . . . . 4 . . Highest Loss Streak 5 | . 2 3 2 2 1 3 . 3 2 . . . 2 . . 1 1 . . . . . 2 1 1 . . . . . 1 . . 1 . . 1 . 5 . . To Critical Strikes 2 | . . . . . . 1 . . . . . . . . . . . . . . . . . . . . . . . . 1 . . . . . . . . . . Average Backups 18 | 1 5 11 20 23 24 24 24 22 19 18 16 15 17 17 17 17 17 18 17 18 18 18 16 18 18 17 18 19 19 18 15 18 19 18 18 18 18 18 16 15 14 Power 1 | . 1 1 1 . . . 1 1 1 1 1 . 1 1 . . . . . 1 1 1 1 2 2 2 2 2 2 2 1 2 2 2 2 2 1 . . 1 1 Propulsion 2 | 1 1 1 4 5 5 6 6 4 6 5 4 3 1 . . 2 2 2 2 2 2 2 . 1 . . . . . . . 1 1 . . 1 1 3 2 1 5 Utility 9 | . 1 4 9 11 10 9 8 7 5 3 3 4 9 12 13 12 12 13 12 12 12 12 12 12 12 12 12 13 13 13 9 11 12 12 13 11 11 12 9 9 7 Weapon 4 | . . 3 5 6 7 6 8 9 6 7 7 5 3 3 2 2 2 3 3 3 3 3 2 3 2 3 3 4 3 2 2 3 3 2 2 2 3 2 1 1 . Tool/Special . | . . . . . . . . . . . . . . . . . . . . . . . . . . . . . . . . . . . . . . . . . . Unused Backups 99 | . 1 6 19 6 7 . 11 2 1 3 1 . 16 1 1 3 3 . 1 . 1 . 2 1 . . . . . . . . . 2 . 1 1 . 2 . 7 Power 10 | . . 1 . . . . 1 . 1 . . . 4 . . . 1 . . . . . . . . . . . . . . . . . . . . . 1 . 1 Propulsion 20 | . . . 6 . . . 5 . . . . . 2 . . 1 . . . . . . . . . . . . . . . . . . . . . . . . 6 Utility 43 | . 1 3 5 4 5 . 3 1 . 2 1 . 10 . 1 2 . . 1 . . . . 1 . . . . . . . . . 2 . . . . 1 . . Weapon 24 | . . 2 8 2 2 . 2 1 . 1 . . . . . . 1 . . . 1 . 2 . . . . . . . . . . . . 1 1 . . . . Tool/Special 2 | . . . . . . . . . . . . . . 1 . . 1 . . . . . . . . . . . . . . . . . . . . . . . . Average Slot Usage (%) 92 | . 92 92 99 98 100 99 99 97 95 100 100 93 92 100 95 99 99 100 100 86 87 87 87 88 87 88 87 88 81 88 88 94 94 89 88 89 88 85 84 85 87 Engine 1 | . 14 9 3 2 9 5 . . . . . . . . . . . . . . . . . . . . . . . . . . . . . . . . . . . Core 2 | . . . 5 6 . 3 9 8 7 7 7 6 2 . . 3 1 . . . . . . . . . . . . . . . . . . . . . . . . Reactor 3 | . . . . . . . . . . . . . 4 7 12 9 11 13 13 5 5 5 5 5 5 5 5 5 4 5 5 5 5 5 5 3 4 8 7 8 8 Treads 7 | . 22 5 35 34 36 35 36 22 . . . . . . . . . . . . . . . . . . . . . . . . . . . . . . . . . Leg 21 | . . . . . . . . 13 29 30 30 28 29 30 28 33 33 33 33 29 28 29 28 29 28 29 29 29 28 29 26 26 26 26 25 27 28 26 25 25 24 Device 13 | . . 11 13 12 9 9 9 7 18 21 15 12 13 15 12 9 10 6 6 16 10 11 10 12 11 14 17 17 16 17 16 19 24 20 21 22 17 10 13 12 19 Storage 9 | . 14 11 9 9 9 9 9 9 7 7 7 6 7 15 13 13 13 13 13 11 11 11 11 11 11 11 11 11 11 11 9 10 10 10 10 9 9 8 8 8 8 Processor 4 | . 7 11 1 . 7 9 9 6 4 7 7 5 . . . . . . . . . 4 5 5 5 5 5 5 5 5 3 5 5 5 5 4 4 10 8 8 8 Protection 7 | . . 8 11 14 10 8 9 10 2 . 7 8 12 7 6 9 8 13 13 5 10 5 4 4 4 1 . . . . 4 5 5 5 5 4 8 8 7 7 8 Energy Gun 1 | . 17 3 1 2 . . . . . . 2 6 9 . . . . . . . . . . . . . . . . . . . . . . . . . . . . Energy Cannon 10 | . . 10 1 7 12 8 3 . . . . . 3 23 20 17 6 6 6 10 16 16 16 17 16 17 16 17 11 16 15 15 15 14 14 14 13 12 11 13 11 Ballistic Gun 5 | . 10 5 6 8 5 9 14 17 21 22 19 13 4 . . 1 11 13 13 4 . . . . . . . . . . . . . . . . . . . . . Peak Build Rating 230 | 6 8 18 34 41 46 45 40 42 55 57 58 59 108 103 115 115 124 124 124 140 146 149 155 155 154 150 148 147 146 148 167 155 159 167 164 181 193 213 217 230 227 Average Rating 107 | 4 6 13 27 35 43 41 37 37 48 50 56 53 78 102 112 111 119 124 123 134 143 143 145 148 147 146 144 145 135 146 153 154 158 159 163 178 183 204 206 210 225 On Entrance 111 | . 6 7 18 28 37 45 38 38 37 48 56 56 59 102 103 115 109 124 124 124 139 146 145 155 149 149 144 145 145 146 146 154 155 159 152 164 180 193 207 207 210 Avg Prop Armor Cover (%) 4 | . 13 2 . . . . . . . . . . . . . . . . . . 3 . . . 3 . 4 . . . . . . . . . . . 2 . . Naked Turns 12 | . . . . . . . . . . . . 12 . . . . . . . . . . . . . . . . . . . . . . . . . . . . . Heaviest Build 187 | 12 37 38 104 115 121 116 105 109 72 67 68 76 107 107 117 121 122 122 122 135 141 141 135 136 135 134 133 133 133 133 140 140 143 147 136 139 165 168 187 182 185 Greatest Support 198 | 40 40 43 83 85 87 87 82 82 70 72 72 80 108 108 126 126 126 126 126 126 134 134 150 150 150 136 136 136 136 136 145 140 140 140 140 173 173 173 178 198 198 Greatest Overweight (x) 3 | . 1 3 1 1 1 1 1 2 1 1 . . 1 . 1 . . . . 1 1 1 1 . 2 . 1 1 . . 1 . 1 1 1 . . . 1 1 . Average Overweight (x) . | . . 1 . 1 1 1 1 . . . . . . . . . . . . . 1 . . . . . . . . . . . . . . . . . . . . Largest Inventory Capacity 25 | 8 15 15 25 25 25 25 25 25 20 20 20 20 20 20 20 20 20 20 20 20 20 20 20 20 20 20 20 20 20 20 20 20 20 20 20 20 20 20 20 20 20 Average Capacity 20 | 7 12 15 21 25 25 25 25 23 20 20 20 19 19 20 20 20 20 20 20 20 20 20 20 20 20 20 20 20 20 20 17 20 20 20 20 20 20 20 20 20 20 Most Carried 25 | 3 7 15 25 25 25 25 25 25 20 20 20 20 20 20 20 20 20 20 20 20 20 20 20 20 20 20 20 20 20 20 20 20 20 20 20 20 20 20 20 20 19 Average Carried 19 | 1 5 11 20 23 24 24 24 22 19 19 19 18 19 19 19 19 19 20 19 19 19 19 17 19 19 19 19 20 19 19 16 19 19 19 19 19 19 19 19 19 17 Final Capacity 25 | 8 15 15 25 25 25 25 25 20 20 20 20 20 20 20 20 20 20 20 20 20 20 20 20 20 20 20 20 20 20 20 20 20 20 20 20 20 20 20 20 20 20 Final Carried 25 | 3 7 15 25 24 23 25 25 20 20 20 19 20 20 20 20 20 20 20 20 20 20 20 20 20 18 19 20 20 20 20 20 20 20 19 20 20 20 19 19 16 19 Class Distribution -------------------- 23% | Scavenger-Golem 14% | Tank 14% | Scavenger-Mutant 12% | Mutant 8% | Golem 7% | Scavenger-Skirmisher 5% | Scavenger-Tank 3% | Commander-Tank Dominant Class ---------------- Mutant | -10/Materials Mutant | -9/Materials Scavenger-Mutant | -8/Materials Scavenger-Mutant | -8/Garrison Mutant | -8/Materials Mutant | -8/Garrison Scavenger-Mutant | -8/Materials Scavenger-Mutant | -8/Garrison Skirmisher | -7/Factory Scavenger-Skirmisher | -7/Lower Caves Tank | -7/Lower Caves Tank | -7/Zion Scavenger-Tank | -7/Deep Caves Tank | -6/Proximity Caves Tank | -6/Factory Tank | -6/Extension Commander-Tank | -6/Cetus Commander-Tank | -6/Archives Commander-Tank | -6/Hub_04(d) Commander-Golem | -5/Factory Scavenger-Golem | -5/Garrison Scavenger-Golem | -5/Factory Scavenger-Golem | -5/Garrison Scavenger-Golem | -5/Factory Scavenger-Golem | -5/Garrison Scavenger-Golem | -5/Factory Scavenger-Golem | -5/Upper Caves Scavenger-Golem | -5/Upper Caves Scavenger-Golem | -5/Zhirov Scavenger-Golem | -4/Proximity Caves Hacker-Tank | -4/Factory Scavenger-Skirmisher | -4/Upper Caves Scavenger-Skirmisher | -4/Upper Caves Scavenger-Golem | -4/Warlord Golem | -3/Proximity Caves Golem | -3/Research Golem | -3/Testing Gunner | -2/Research Golem | -2/Quarantine Alien-Tank | -2/Section 7 Alien-Tank | -1/Access Resources | -11 -10 -9 -8 -8 -8 -8 -8 -8 -7 -7 -7 -7 -7 -6 -6 -6 -6 -6 -6 -5 -5 -5 -5 -5 -5 -5 -5 -5 -5 -4 -4 -4 -4 -4 -3 -3 -3 -2 -2 -2 -1 ----------- Run | Yrd Mat Mat Mat Gar Mat Gar Mat Gar Fac Low Low Zio Dee Pro Fac Ext Cet Arc Hub Fac Gar Fac Gar Fac Gar Fac Upp Upp Zhi Pro Fac Upp Upp War Pro Res Tes Res Qua Sec Acc Matter Collected 13380 | 210 254 491 1120 626 298 602 681 1066 526 490 196 155 1037 30 70 111 163 40 133 62 263 195 372 256 353 52 196 76 . 279 160 10 30 474 27 73 265 . 878 649 411 Remotely 47 | . . . . . . . . . . . . . . . . . . . . . . . . . . . . . . . . . . . . . . . . 47 . Salvage Created 38347 | . 550 1126 1356 1277 1171 1140 911 1203 526 593 329 . 1975 258 307 2156 293 156 1283 . 1434 875 2113 905 2244 220 271 175 . 349 1265 498 . 2637 103 475 1285 138 2950 1884 1916 Parts 1759 | . 23 76 63 67 58 53 47 70 33 30 17 . 48 14 11 94 11 7 43 . 51 57 99 69 96 10 13 9 . 9 57 9 . 107 3 19 72 3 158 87 66 Haulers Intercepted 18 | . 1 . 4 . 1 . 4 . 1 . . . . . . 1 . . 1 . . 2 . . . 1 . . . . . . . . . 1 1 . . . . Recyclers Shooed 14 | . . 1 5 . 1 . 1 . . . . . . . . 3 . . . . . . . 2 . . . . . . 1 . . . . . . . . . . Parts Field Recycled 5 | . . . . . . . . . 5 . . . . . . . . . . . . . . . . . . . . . . . . . . . . . . . . Retrieved Matter 111 | . . . . . . . . . 111 . . . . . . . . . . . . . . . . . . . . . . . . . . . . . . . . Parts Self-Destructed 112 | . . . . . . . . . . 24 20 1 . 14 . . . . . . . . . . . . 18 9 . 11 . 11 . . 4 . . . . . . Prevented . | . . . . . . . . . . . . . . . . . . . . . . . . . . . . . . . . . . . . . . . . . . Parts Restored . | . . . . . . . . . . . . . . . . . . . . . . . . . . . . . . . . . . . . . . . . . . Kills | -11 -10 -9 -8 -8 -8 -8 -8 -8 -7 -7 -7 -7 -7 -6 -6 -6 -6 -6 -6 -5 -5 -5 -5 -5 -5 -5 -5 -5 -5 -4 -4 -4 -4 -4 -3 -3 -3 -2 -2 -2 -1 ------- Run | Yrd Mat Mat Mat Gar Mat Gar Mat Gar Fac Low Low Zio Dee Pro Fac Ext Cet Arc Hub Fac Gar Fac Gar Fac Gar Fac Upp Upp Zhi Pro Fac Upp Upp War Pro Res Tes Res Qua Sec Acc Combat Hostiles Destroyed 651 | . 11 29 26 30 23 31 20 31 9 11 6 . 59 7 4 25 4 2 11 . 24 8 38 9 39 2 9 2 . 6 12 7 . 50 1 3 20 1 35 27 19 Melee 1 | . . . . . . . . . . . . . . . . . . . . . . . . . . . . . . . . . . . . . . . 1 . . Guns 148 | . 10 13 5 18 4 10 8 20 9 11 5 . 21 . . 1 3 1 8 . . . . . 1 . . . . . . . . . . . . . . . . Cannons 380 | . . 16 21 9 16 15 2 1 . . . . . 7 4 24 1 1 3 . 16 8 35 9 33 2 5 2 . 6 12 7 . 37 1 3 16 1 33 27 7 AOE 106 | . . . . 3 . 5 10 9 . . 1 . 36 . . . . . . . 8 . 3 . 5 . 4 . . . . . . 13 . . 4 . . . 5 Classes Destroyed 34 | . 4 4 3 2 1 1 1 . . 2 . . 4 2 . . . . . . 2 . . . . . . 1 . . . . . 2 . . 1 . 2 1 1 Worker 20 | . 1 2 . . 1 . 6 . . . . . . . . . . . 5 . . 1 . . . . . . . . . . . . . 3 . . 1 . . Builder 16 | . . . . . 1 . . . 1 . . . . . . . . . 1 . . 6 . 3 . . . . . . . . . . . . . . . 3 1 Tunneler 3 | . . . 1 . . . . . 1 . . . . . . . . . 1 . . . . . . . . . . . . . . . . . . . . . . Hauler 18 | . 1 . 4 . 1 . 4 . 1 . . . . . . 1 . . 1 . . 2 . . . 1 . . . . . . . . . 1 1 . . . . Recycler 16 | . . 1 4 . 1 . . . . . . . . . . 3 . . . . . . . 2 . . . . . . 3 . . . . 1 . . . 1 . Minesweeper 4 | . . . . . . . . . . 1 1 . . . . . . . . . . . . . . . . 1 . . . 1 . . . . . . . . . Mechanic 2 | . . . . . . . . . . . . . . . . . . . . . . . . . . . . . . . . . . . . . . . . . 2 Operator 9 | . 1 2 . . . . 1 . . . . . . . . 1 . . . . . . . . . . . . . . . . . . . . . . 1 2 1 Drone 3 | . . . . . . . . . . . . . . 2 . . . . . . . . . . . . . . . . . . . . 1 . . . . . . Watcher 18 | . . . 1 1 1 . 1 . . . . . . . 1 2 1 . 1 . . 1 . . . . . . . . . . . . . 1 1 1 3 2 . Swarmer 111 | . . 11 2 6 6 10 3 4 4 3 . . . 3 . . . . . . 4 . 2 3 5 . 7 . . 2 . 2 . 6 . 2 10 . 5 11 . Cutter 8 | . . . . . . . . . . . . . . . . . . . . . 4 . 4 . . . . . . . . . . . . . . . . . . Saboteur 5 | . . . . . . . . . . . . . . . . . . . . . . . . . . . . . . . . . . 3 . . . . . 1 1 Grunt 245 | . 11 13 15 14 9 12 14 15 3 5 4 . . . 3 13 . . 8 . 14 5 18 . 18 . 1 . . 3 4 . . 20 . . 4 . 10 4 5 Brawler 18 | . . . . 2 . 1 . . . . 1 . . . . 1 . . . . . . . . . . . . . 1 . 2 . 3 . . 1 . . . 6 Duelist 9 | . . 1 . 1 . 1 . . 1 . . . . . . . . . 1 . . . . . 1 2 . . . . . . . . . . . . . . 1 Protector 4 | . . . . . . . 1 . . . . . . . . . . . . . . . . . . . . . . . . . . 3 . . . . . . . Researcher 2 | . . . . . . . . . . . . . . . . . . . . . . . . . . . . . . . . . . . . . 1 . 1 . . Sentry 74 | . . 4 5 3 7 5 1 3 1 1 . . . 1 1 8 . 2 2 . 1 1 4 2 9 . 1 . . . 5 1 . . . . . 1 . 3 2 Demolisher 5 | . . . . . . . . . . . . . . . . . . . . . . . . . . . . . . . . . . 5 . . . . . . . Specialist 2 | . . . . 1 . . . . . . . . . . . . . . . . . . . . . . . . . . . . . 1 . . . . . . . Hunter 27 | . . . 4 3 1 . 1 3 . . 1 . . . . 1 . . . . . . . . . . . 2 . . 2 2 . 4 . . . . . . 3 Programmer 49 | . . . . . . 2 . 6 . . . . . . . . . . . . . 1 8 3 6 . . . . . 1 . . 2 . 1 5 . 10 3 1 Q-Series 2 | . . . . . . . . . . . . . . . . . . . . . . . . . . . . . . . . . . . . . . . . 2 . Behemoth 5 | . . . . . . . . . . . . . . 1 . 2 . . . . . 1 . 1 . . . . . . . . . . . . . . . . . Cetus Guard 4 | . . . . . . . . . . . . . . . . . 4 . . . . . . . . . . . . . . . . . . . . . . . . Quarantine Guard 8 | . . . . . . . . . . . . . . . . . . . . . . . . . . . . . . . . . . . . . . . 8 . . S7 Guard 1 | . . . . . . . . . . . . . . . . . . . . . . . . . . . . . . . . . . . . . . . . 1 . Enhanced Grunt 3 | . . . . . . . . . . . . . 2 . . . . . . . . . . . . . . . . . . . . 1 . . . . . . . Executioner 10 | . . . . . . . . . . . . . . . . . . . . . 1 . 2 1 . . . . . . . . . 4 . . . . . 2 . Alpha 7 1 | . . . . . . . . . . . . . . . . . . . . . . . . . . . . . . . . . . . . . . . 1 . . Fortress 1 | . . . . . . . . . . . . . . . . . . . . . . . . . . . . . . . . . . . . . . . 1 . . Z-Light 5 | . . . . . . . . . . . . . 5 . . . . . . . . . . . . . . . . . . . . . . . . . . . . Packrat 2 | . . . . . . . . . . . . . . . . . . . . . . . . . . . . . . . . 1 . . 1 . . . . . . Samaritan 1 | . . . . . . . . . . . . . . . . . . . . . . . . . . . . 1 . . . . . . . . . . . . . Assembler 2 | . . . . . . . . . . . . . 2 . . . . . . . . . . . . . . . . . . . . . . . . . . . . Assembled 41 | . . . . . . . . . . . . . 41 . . . . . . . . . . . . . . . . . . . . . . . . . . . . Golem 13 | . . . . . . . . . . . . . 13 . . . . . . . . . . . . . . . . . . . . . . . . . . . . Thug 4 | . . . . 1 . . . . . . . . . . . . . . 2 . . . . . . . . . . . . . . 1 . . . . . . . Savage 1 | . . . . . . . . . . . . . . . . . . . 1 . . . . . . . . . . . . . . . . . . . . . . Butcher 3 | . . . . . . . . . . 1 . . . . . . . . 1 . 1 . . . . . . . . . . . . . . . . . . . . Guerrilla 3 | . . . . . . . . . . . . . . . . 1 . . 2 . . . . . . . . . . . . . . . . . . . . . . Mutant 1 | . . . . . . . . . . 1 . . . . . . . . . . . . . . . . . . . . . . . . . . . . . . . Best Kill Streak 39 | . 3 8 3 4 4 4 7 6 4 3 3 . 39 3 3 7 4 2 11 . 5 5 6 4 7 3 4 2 . 2 4 5 . 25 1 4 5 1 5 5 14 Combat Bots Only 37 | . 2 8 3 4 4 4 5 6 4 3 3 . 37 3 3 4 3 2 8 . 5 3 6 2 7 2 4 2 . 2 4 5 . 25 1 2 5 1 5 4 10 Max Kills in Single Turn 18 | . 1 1 2 3 1 4 4 3 2 1 1 . 18 1 1 2 2 1 8 . 4 2 2 2 3 1 3 1 . 1 1 2 . 4 1 3 3 1 2 2 3 Gunslinging 1 | . . . . 1 . . 1 . 1 . . . 1 . . . . . . . . . . . . . . . . . . . . . . . . . . . . Exploded 18 | . . . . 3 . 4 3 3 . . 1 . 18 . . . . . . . 4 . 2 . 3 . 3 . . . . . . 4 . . 3 . . . 2 Melee 1 | . . . . . . . . . . . . . . . . . . . . . . . . . . . . . . . . . . . . . . . 1 . . Uniques/NPCs Destroyed 1 | . . . . . . . . . . . . . 1 . . . . . . . . . . . . . . . . . . . . . . . . . . . . Z-Imprinter (-7/Deep Caves) Combat | -11 -10 -9 -8 -8 -8 -8 -8 -8 -7 -7 -7 -7 -7 -6 -6 -6 -6 -6 -6 -5 -5 -5 -5 -5 -5 -5 -5 -5 -5 -4 -4 -4 -4 -4 -3 -3 -3 -2 -2 -2 -1 -------- Run | Yrd Mat Mat Mat Gar Mat Gar Mat Gar Fac Low Low Zio Dee Pro Fac Ext Cet Arc Hub Fac Gar Fac Gar Fac Gar Fac Upp Upp Zhi Pro Fac Upp Upp War Pro Res Tes Res Qua Sec Acc Hostile Shots Fired 2781 | . 61 139 153 178 69 132 51 220 60 18 9 . 74 36 18 136 17 2 32 . 86 14 188 35 140 2 23 21 . 17 61 13 . 89 . 5 74 4 300 214 90 Missed 897 | . 20 32 50 39 22 29 16 64 18 6 3 . 20 19 7 50 5 1 11 . 26 5 49 10 34 . 12 1 . 9 29 9 . 42 . 4 32 3 95 85 40 Hits 1884 | . 41 107 103 139 47 103 35 156 42 12 6 . 54 17 11 86 12 1 21 . 60 9 139 25 106 2 11 20 . 8 32 4 . 47 . 1 42 1 205 129 50 Melee 29 | . . 2 . 2 . . . . 1 . . . 5 . . . . . . . 1 . 3 . . 1 . . . . . . . . . . . . . 14 . Projectile 1855 | . 41 105 103 137 47 103 35 156 41 12 6 . 49 17 11 86 12 1 21 . 59 9 136 25 106 1 11 20 . 8 32 4 . 47 . 1 42 1 205 115 50 AOE 7 | . . . . . . . . . . . . . . . . . . . . . 2 . 4 . . . . . . . . . . 1 . . . . . . . Critical Strikes 89 | . . 2 3 6 1 3 1 6 2 1 . . . . . 2 2 . 2 . 4 . 13 2 6 . . 1 . . 2 2 . 2 . . 4 . 13 7 2 Actively Blocked 2 | . . . . . . . . . . . . . . . . . . . . . . . . . . . . . . . . . . . . . . . . . 2 Part Disruptions 9 | . . . . . . . . . . . . . . . . . . . . . . . . . 1 . 1 1 . . . . . 4 . . . . 1 1 . Damage Taken 32280 | . 563 1389 1246 1896 627 1469 555 2227 519 194 83 . 1789 173 217 1114 214 23 359 . 1249 161 3043 594 2151 65 227 295 . 108 495 52 . 839 . 79 516 23 4976 1994 756 Core 2844 | . 113 394 38 123 12 148 19 181 47 14 . . 271 32 22 26 . . 83 . 174 . 233 115 117 . 14 . . . 33 14 . 66 . . 17 . 137 387 14 Absorbed by Shields 4371 | . . . 266 173 . . . 146 . . . . . . . 47 130 . . . 45 . 40 . 12 . 38 111 . 40 45 19 . 323 . . 254 . 871 1090 721 Redirected to Shielding 247 | . . . . . . . . . . . . . 247 . . . . . . . . . . . . . . . . . . . . . . . . . . . . Ignored by Resistances 2226 | . . 2 . . . . . . . . . . . . . . . . . . . . . . . . . . . . 112 15 . 236 . 16 162 5 713 682 283 Regen/Repaired (Parts) 3621 | . . . . . . . . . . . . 110 . . . 93 . . . . . . . . . . . . . . . . . 25 . . 97 . 1196 1899 201 Core Remaining (%) 59 | 100 54 1 . . . . . 5 . . . . . 48 . . . . 84 . . . . . . . . . . 34 . . . . 90 . 98 . . 45 99 Volleys Fired 1944 | . 62 82 102 91 69 102 87 111 26 29 12 . 86 20 11 59 15 5 22 . 77 51 112 27 91 13 18 6 . 15 37 16 3 102 18 21 76 9 118 99 44 Largest 3 | . 2 2 2 2 2 2 2 2 3 3 3 . 3 3 3 3 3 3 3 . 3 3 3 3 3 3 3 3 . 3 3 3 3 3 3 3 3 3 3 3 3 Hottest 213 | . 90 128 105 118 165 115 100 69 75 75 130 . 213 75 75 83 95 95 95 . 75 75 75 75 85 75 75 75 . 75 75 75 75 100 75 75 80 75 75 75 80 Shots Fired 4238 | . 124 162 202 166 137 187 138 202 77 87 32 . 214 57 29 166 38 15 66 . 175 90 237 72 211 20 37 16 1 39 85 45 9 231 49 41 154 20 267 252 88 Gun 1344 | . 124 86 80 116 44 109 116 187 77 87 30 . 183 . . 10 18 10 44 . . . 6 . 6 . . . . . . . . 1 . . 10 . . . . Cannon 2820 | . . 76 122 43 93 74 15 10 . . . . 17 57 29 156 20 5 22 . 172 90 227 72 203 20 33 16 1 39 85 45 9 220 49 41 142 20 267 252 78 Launcher 74 | . . . . 7 . 4 7 5 . . 2 . 14 . . . . . . . 3 . 4 . 2 . 4 . . . . . . 10 . . 2 . . . 10 Special . | . . . . . . . . . . . . . . . . . . . . . . . . . . . . . . . . . . . . . . . . . . Kinetic 1166 | . 53 65 175 89 44 109 116 187 77 87 29 . 22 . . 10 18 10 44 . . . 6 . 6 . . . . . . . . 1 . . 10 . 8 . . Thermal 2891 | . 62 97 27 70 92 74 15 . . . 1 . 117 57 29 156 20 5 22 . 172 90 227 72 203 20 33 16 1 39 85 45 9 194 49 41 142 20 259 252 78 Explosive 58 | . . . . 3 . 4 7 5 . . 2 . 14 . . . . . . . 3 . 4 . 2 . 4 . . . . . . 10 . . . . . . . Electromagnetic 53 | . 9 . . 4 1 . . 10 . . . . 17 . . . . . . . . . . . . . . . . . . . . . . . 2 . . . 10 Entropic 26 | . . . . . . . . . . . . . . . . . . . . . . . . . . . . . . . . . . 26 . . . . . . . Phasic 44 | . . . . . . . . . . . . . 44 . . . . . . . . . . . . . . . . . . . . . . . . . . . . Robot Hit Streak 32 | . 15 30 14 14 13 12 8 10 10 11 20 . 29 5 7 20 9 7 10 . 15 9 11 9 12 7 13 6 . 10 32 10 . 20 1 13 9 9 20 31 10 Robot Miss Streak 9 | . 5 4 9 8 5 5 6 5 3 6 2 . 5 2 2 2 1 2 2 . 3 4 4 4 4 2 5 1 . 6 1 2 . 2 4 2 1 1 2 2 2 Penetration Max 2 | . . . . 1 . . . . . . . . . . . 1 2 . 1 . . . . . . . . . . . . . . . . . . . . . . Secondary Targets 17 | . 2 1 . 3 . . 2 1 5 1 1 . 1 . . . . . . . . . . . . . . . . . . . . . . . . . . . . Max Gunslinging Chain 2 | . 1 1 . 1 . . 1 1 2 1 1 . 1 . . . . . . . . . . . . . . . . . . . . . . . . . . . . Shots Hit Robots 2344 | . 83 108 149 105 75 90 73 123 52 46 24 . 140 10 17 115 25 11 31 . 89 31 117 35 110 6 15 11 . 15 48 27 . 134 2 21 40 10 171 137 48 Core Hits 1476 | . 28 49 130 78 30 42 56 56 21 27 18 . 168 9 8 48 12 5 41 . 42 23 55 19 56 4 10 4 . 8 26 13 . 120 1 10 41 3 86 58 71 Critical Kills 15 | . 1 . . . 4 1 . . . . . . . . . 1 2 . 5 . . . . . 1 . . . . . . . . . . . . . . . . Critical Parts Destroyed 13 | . . . . . . . . . 1 1 . . . . . 3 1 1 5 . . . . . . . . . . . . . . . . . 1 . . . . Critical Strikes 56 | . 7 4 1 . 4 1 . . 2 1 . . 4 . . 4 6 1 11 . . . . . 1 . . . . . . . . 8 . . 1 . . . . Burn 8 | . 6 2 . . . . . . . . . . . . . . . . . . . . . . . . . . . . . . . . . . . . . . . Meltdown 5 | . . . . . 4 1 . . . . . . . . . . . . . . . . . . . . . . . . . . . . . . . . . . . Destroy 28 | . 1 . . . . . . . 2 1 . . . . . 4 6 1 11 . . . . . 1 . . . . . . . . . . . 1 . . . . Blast 3 | . . 2 1 . . . . . . . . . . . . . . . . . . . . . . . . . . . . . . . . . . . . . . Sunder 8 | . . . . . . . . . . . . . . . . . . . . . . . . . . . . . . . . . . 8 . . . . . . . Intensify 4 | . . . . . . . . . . . . . 4 . . . . . . . . . . . . . . . . . . . . . . . . . . . . Melee Attacks 17 | . . . . . . . . . 3 6 1 . . . . . . . . . . . . . . . . . . . . . . . . . . . 7 . . Kinetic 7 | . . . . . . . . . . . . . . . . . . . . . . . . . . . . . . . . . . . . . . . 7 . . Impact . | . . . . . . . . . . . . . . . . . . . . . . . . . . . . . . . . . . . . . . . . . . Slashing 10 | . . . . . . . . . 3 6 1 . . . . . . . . . . . . . . . . . . . . . . . . . . . . . . Piercing . | . . . . . . . . . . . . . . . . . . . . . . . . . . . . . . . . . . . . . . . . . . Sneak Attacks . | . . . . . . . . . . . . . . . . . . . . . . . . . . . . . . . . . . . . . . . . . . Combat Hostiles . | . . . . . . . . . . . . . . . . . . . . . . . . . . . . . . . . . . . . . . . . . . Follow-up Attacks . | . . . . . . . . . . . . . . . . . . . . . . . . . . . . . . . . . . . . . . . . . . Damage Inflicted 100118 | . 1115 1674 2664 2583 2219 2684 2843 3069 917 798 564 . 7145 774 764 5442 1050 428 3414 . 5138 1892 6165 1974 6048 352 902 496 . 666 2434 1273 . 10097 102 1223 2741 445 8117 5896 4010 Guns 16376 | . 1094 806 723 1283 377 1009 1007 2003 913 798 411 . 3678 . . 75 395 238 1200 . . . 67 . 131 . . . . . . . . . . . 168 . . . . Cannons 66969 | . . 868 1912 799 1809 1037 275 216 . . . . 260 774 762 5333 655 190 756 . 4405 1834 5730 1974 5243 352 609 480 . 666 2424 1273 . 6799 102 1135 2214 445 7848 5884 1906 Explosions 16109 | . 21 . . 494 . 638 1560 850 . . 153 . 3207 . . . . . 1370 . 733 . 368 . 674 . 293 . . . . . . 3285 . . 359 . . . 2104 Melee 252 | . . . . . . . . . . . . . . . . . . . . . . . . . . . . . . . . . . . . . . . 252 . . Ramming 412 | . . . 29 7 33 . 1 . 4 . . . . . 2 34 . . 88 . . 58 . . . . . 16 . . 10 . . 13 . 88 . . 17 12 . Kinetic 13819 | . 510 593 2267 1002 377 1009 1007 2003 913 798 401 . 192 . . 75 395 238 1200 . . . 67 . 131 . . . . . . . . . . . 168 . 473 . . Thermal 67521 | . 499 1081 368 1080 1778 1037 275 107 . . 10 . 2331 774 762 5333 655 190 769 . 4405 1834 5730 1974 5243 352 609 480 . 666 2424 1273 . 5600 102 1135 2214 445 7627 5884 2475 Explosive 12097 | . . . . 399 . 638 1560 743 . . 153 . 3207 . . . . . . . 733 . 368 . 674 . 293 . . . . . . 3285 . . . . . . 44 Electromagnetic 3915 | . 106 . . 95 31 . . 216 . . . . 260 . . . . . 1357 . . . . . . . . . . . . . . . . . 359 . . . 1491 Impact . | . . . . . . . . . . . . . . . . . . . . . . . . . . . . . . . . . . . . . . . . . . Slashing . | . . . . . . . . . . . . . . . . . . . . . . . . . . . . . . . . . . . . . . . . . . Piercing . | . . . . . . . . . . . . . . . . . . . . . . . . . . . . . . . . . . . . . . . . . . Entropic 1199 | . . . . . . . . . . . . . . . . . . . . . . . . . . . . . . . . . . 1199 . . . . . . . Phasic 1155 | . . . . . . . . . . . . . 1155 . . . . . . . . . . . . . . . . . . . . . . . . . . . . Highest Corruption 47 | . . 1 . . . 1 1 8 . . . . . . . . . . 1 . 10 25 40 41 47 47 47 47 47 47 . . . 1 1 . 4 . 11 2 . Average Corruption 19 | . . 1 . . . 1 1 5 . . . . . . . . . . 1 . 10 20 36 40 46 47 47 47 47 47 . . . 1 1 . 1 . 4 1 . Corruption Purged 2 | . . . . . . . . . . . . . . . . . . . . . . . . . . . . . . . . . . . . . . . . 2 . Corruption Blocked . | . . . . . . . . . . . . . . . . . . . . . . . . . . . . . . . . . . . . . . . . . . Effects 676 | . . 7 . . . 10 9 30 . . . . . . . . . . 1 . 52 50 123 65 106 18 41 35 38 32 . . . . 6 . 5 . 43 5 . Message Errors 165 | . . 1 . . . 4 3 7 . . . . . . . . . . . . 15 13 21 18 28 9 8 8 13 5 . . . . 1 . . . 9 2 . Matter Fused 142 | . . 3 . . . 1 . 6 . . . . . . . . . . . . 11 13 16 21 18 3 9 9 13 6 . . . . 2 . 2 . 7 2 . Heat Flow Errors 79 | . . 1 . . . . 2 4 . . . . . . . . . . 1 . 5 5 16 6 8 2 9 4 5 4 . . . . . . 1 . 5 1 . Energy Discharges 67 | . . . . . . 1 1 4 . . . . . . . . . . . . 4 4 14 5 11 1 4 5 1 3 . . . . . . 1 . 8 . . Parts Rejected 10 | . . 1 . . . . 1 2 . . . . . . . . . . . . 1 1 . . 2 . 2 . . . . . . . . . . . . . . Parts Fused 6 | . . . . . . . . . . . . . . . . . . . . . 1 . 3 1 . . 1 . . . . . . . . . . . . . . Data Loss (minor) 71 | . . . . . . 1 1 7 . . . . . . . . . . . . 3 5 14 6 11 1 3 3 4 5 . . . . . . 1 . 6 . . Data Loss (major) 31 | . . . . . . 1 . . . . . . . . . . . . . . 2 2 8 1 5 . 4 2 1 2 . . . . 2 . . . 1 . . Misfires 16 | . . . . . . . 1 . . . . . . . . . . . . . 4 . 4 2 . . . 1 1 2 . . . . . . . . 1 . . Alerts 9 | . . . . . . 1 . . . . . . . . . . . . . . 1 1 1 . 2 1 . . . . . . . . 1 . . . 1 . . Misdirections 3 | . . . . . . . . . . . . . . . . . . . . . . 2 1 . . . . . . . . . . . . . . . . . . Weapon Failures 77 | . . 1 . . . 1 . . . . . . . . . . . . . . 5 4 25 5 21 1 1 3 . 5 . . . . . . . . 5 . . Overload Shots . | . . . . . . . . . . . . . . . . . . . . . . . . . . . . . . . . . . . . . . . . . . Overflow Damage 2526 | . . . . 11 19 139 102 . . . 1 . 141 . 23 81 23 . 79 . 89 71 228 111 230 . 28 119 . 53 86 88 . 205 41 69 61 28 117 191 92 Projectiles 2001 | . . . . . 19 47 . . . . . . . . 23 81 23 . 46 . 89 71 228 111 167 . 28 108 . 53 86 88 . 180 41 69 61 28 117 191 46 Explosions 512 | . . . . 11 . 92 102 . . . 1 . 141 . . . . . 33 . . . . . 63 . . . . . . . . 23 . . . . . . 46 Melee 13 | . . . . . . . . . . . . . . . . . . . . . . . . . . . . 11 . . . . . 2 . . . . . . . Knockbacks 42 | . . 1 39 . . . . . . . . . . . . . . . . . . 1 . . . . . . . . . . . . . 1 . . . . . Impact 2 | . . . . . . . . . . . . . . . . . . . . . . 1 . . . . . . . . . . . . . 1 . . . . . Kinetic 39 | . . 1 38 . . . . . . . . . . . . . . . . . . . . . . . . . . . . . . . . . . . . . . Secondary 1 | . . . 1 . . . . . . . . . . . . . . . . . . . . . . . . . . . . . . . . . . . . . . Self-Inflicted Damage 523 | . . . . 18 . 39 . 46 . . . . 22 . . . . . 101 . 49 . 134 . . . . . . . . . . . . . . . . . 114 Shots 17 | . . . . 2 . 1 . 2 . . . . 1 . . . . . 1 . 1 . 3 . . . . . . . . . . . . . . . . . 6 Rammed 13 | 1 . . 6 1 4 . . 1 . . . . . . . . . . . . . . . . . . . . . . . . . . . . . . . . . Targets Rammed 42 | 1 . . 7 1 4 . 1 1 1 . . . . . 1 3 . . 9 . . 5 . . . . . 1 . . 1 . . 1 . 3 . . 1 1 . Kicked 27 | . . . . . . . . . 1 . . . . . 1 3 . . 9 . . 5 . . . . . 1 . . 1 . . 1 . 3 . . 1 1 . Crushed 2 | . . . 1 . . . 1 . . . . . . . . . . . . . . . . . . . . . . . . . . . . . . . . . . Highest Temperature 552 | . 168 552 108 36 227 68 142 385 102 11 82 277 403 177 204 93 . . 227 . 239 264 252 269 262 95 255 355 268 217 . . . 27 . . 191 9 368 91 . Average Temperature 76 | . 49 144 40 6 40 16 20 48 48 8 29 141 132 63 77 19 . . 23 . 105 127 98 100 101 48 92 124 118 86 . . . 7 . . 32 9 99 22 . Received Heat Transfer 6933 | . 294 471 377 746 216 594 315 674 162 101 54 . 282 12 93 376 . 9 120 . 369 27 461 30 561 . 36 . . 29 60 . . 116 . . 22 9 115 142 60 Effects 27 | . . 15 . . . . . 2 . . . . . . . . . . . . . 1 . . . . . . . . . . . . . . . . 9 . . Shutdowns 7 | . . 4 . . . . . 1 . . . . . . . . . . . . . . . . . . . . . . . . . . . . . . 2 . . Energy Bleed 4 | . . 1 . . . . . . . . . . . . . . . . . . . 1 . . . . . . . . . . . . . . . . 2 . . Interference 6 | . . 3 . . . . . . . . . . . . . . . . . . . . . . . . . . . . . . . . . . . . 3 . . Matter Decay 2 | . . 1 . . . . . 1 . . . . . . . . . . . . . . . . . . . . . . . . . . . . . . . . . Short Circuit 2 | . . . . . . . . . . . . . . . . . . . . . . . . . . . . . . . . . . . . . . . 2 . . Damage (minor) 3 | . . 3 . . . . . . . . . . . . . . . . . . . . . . . . . . . . . . . . . . . . . . . Damage (core) 3 | . . 3 . . . . . . . . . . . . . . . . . . . . . . . . . . . . . . . . . . . . . . . Siege Activations . | . . . . . . . . . . . . . . . . . . . . . . . . . . . . . . . . . . . . . . . . . . Martial Activations . | . . . . . . . . . . . . . . . . . . . . . . . . . . . . . . . . . . . . . . . . . . Shielding Activations . | . . . . . . . . . . . . . . . . . . . . . . . . . . . . . . . . . . . . . . . . . . Robots Disrupted 3 | . . . . . . . . . . . . . . . . . . . . . . . . . . . . . . . . . . . . . . . . . 3 Combat Hostiles 3 | . . . . . . . . . . . . . . . . . . . . . . . . . . . . . . . . . . . . . . . . . 3 Robots Corrupted 13 | . . . . . . . . 1 . . . . 2 . . . . . 1 . . . . . . . . 1 . . . . . . . . . . . . 8 Combat Hostiles 10 | . . . . . . . . 1 . . . . 2 . . . . . . . . . . . . . . . . . . . . . . . . . . . 7 Parts Fried 22 | . . . . . . . . 1 . . . . . . . . . . 3 . 1 . . . . . . 1 . . . . . 2 . . 3 . . . 11 Impact Corruptions 3 | . . . . . . . . . . . . . . . . . . . . . . . . . . . . 2 . . . . . 1 . . . . . . . Robots Melted 6 | . 1 . . . 4 1 . . . . . . . . . . . . . . . . . . . . . . . . . . . . . . . . . . . Combat Hostiles 5 | . 1 . . . 3 1 . . . . . . . . . . . . . . . . . . . . . . . . . . . . . . . . . . . Parts Melted 53 | . 2 5 . . 6 4 . . . . . . . 2 2 6 . . . . 1 . . . 4 . . . . . 1 . . 5 . . 1 . 6 8 . Heat Transferred 46477 | . 1900 2627 604 1595 2742 1522 407 50 . . 25 . 2988 425 425 2975 375 100 475 . 2375 925 2925 1000 2700 200 350 275 . 375 1275 725 . 2955 50 581 1150 250 4100 3550 1481 Parts Sabotaged . | . . . . . . . . . . . . . . . . . . . . . . . . . . . . . . . . . . . . . . . . . . Parts Stolen . | . . . . . . . . . . . . . . . . . . . . . . . . . . . . . . . . . . . . . . . . . . Parts Stripped 18 | . . . . . . . . . . . . . . . . . . . . . . . . . . . . . . . . . . . . . . . 18 . . Power Chain Reactions 7 | . 1 . . . . . . 1 . . . . . . . . . . 1 . . . . . . . . . . . . . . . . . . . . . 4 Alert | -11 -10 -9 -8 -8 -8 -8 -8 -8 -7 -7 -7 -7 -7 -6 -6 -6 -6 -6 -6 -5 -5 -5 -5 -5 -5 -5 -5 -5 -5 -4 -4 -4 -4 -4 -3 -3 -3 -2 -2 -2 -1 ------- Run | Yrd Mat Mat Mat Gar Mat Gar Mat Gar Fac Low Low Zio Dee Pro Fac Ext Cet Arc Hub Fac Gar Fac Gar Fac Gar Fac Upp Upp Zhi Pro Fac Upp Upp War Pro Res Tes Res Qua Sec Acc Maximum Alert Level 5 | . . 1 1 4 3 5 3 4 3 . . . . . . 1 1 1 4 2 5 4 5 4 5 4 . . . . 2 . . . . 3 2 1 2 5 5 Low Security (%) 19 | 100 100 38 84 . . . . . . . . . . . 100 93 43 19 28 . . . . . . . . . . . . . . . . . . 7 8 . . Level 1 14 | . . 61 15 9 1 . . . . . . . . . . 6 56 80 4 . 2 39 6 . . . . . . . 49 . . . . . 88 92 12 26 . Level 2 26 | . . . . 17 96 31 . 8 49 . . . . . . . . . 44 100 4 12 14 . . . . . . . 50 . . . . 80 11 . 78 70 . Level 3 14 | . . . . 29 1 20 100 36 50 . . . . . . . . . 20 . 10 7 24 44 2 . . . . . . . . . . 19 . . . . . Level 4 15 | . . . . 42 . 35 . 54 . . . . . . . . . . 1 . 32 40 20 55 29 100 . . . . . . . . . . . . . . 2 Level 5 8 | . . . . . . 12 . . . . . . . . . . . . . . 50 . 34 . 68 . . . . . . . . . . . . . . . . High Security . | . . . . . . . . . . . . . . . . . . . . . . . . . . . . . . . . . . . . . . . . . . Max Security 1 | . . . . . . . . . . . . . . . . . . . . . . . . . . . . . . . . . . . . . . . . 2 97 Peak Influence 3410 | . 143 344 315 1504 733 1716 1045 1466 797 . . . . . 89 220 297 270 1390 681 2233 1329 1964 1405 2493 1349 . . . . 610 . . . . 750 519 303 689 1733 3410 Initial 1308 | . . 47 128 194 733 417 836 620 769 . . . . . . 1 88 86 77 681 367 1171 203 1031 977 1308 . . . . 610 . . . . 750 314 279 102 337 1100 Average 734 | . 51 218 130 936 524 1055 955 1089 700 . . . . . 23 103 203 225 443 603 1516 739 1220 1144 1796 1289 . . . . 432 . . . . 656 312 254 510 518 2166 Influence Increases 27797 | . 424 806 839 1440 775 1379 819 976 273 320 179 . . 130 136 1013 359 194 1543 34 1966 488 1801 980 1576 97 269 55 . 165 990 155 . 1604 5 903 750 64 1320 1160 1810 Destroy 0b10 Robot/C 13560 | . 220 580 520 640 480 620 480 620 180 180 140 . . 100 80 580 160 80 360 . 880 200 760 440 780 60 180 40 . 120 240 140 . 1140 . 60 420 20 720 580 760 Destroy 0b10 Robot/NC 655 | . 15 25 50 5 30 . 65 . 15 5 5 . . 10 5 45 10 . 60 . 20 50 . 30 . 5 . 5 . . 15 5 . 15 5 30 10 5 25 45 45 Destroy Leader 1844 | . 62 120 150 20 144 40 110 50 32 . 20 . . 20 22 54 . . 98 . 50 56 50 112 70 2 10 10 . . 60 10 . . . 24 54 12 146 104 132 Allied During Kill 2319 | . . . . 20 4 . 45 . . . 14 . . . . 215 170 80 518 . 391 37 . 182 . 14 4 . . . . . . 389 . . . . . 11 225 Successful Hack 313 | . 7 . 20 44 14 . . . 28 . . . . . 4 60 . . 12 34 . 27 . 4 . . . . . . 6 . . . . . 11 . . 42 . Select Force Hacks 150 | . 60 30 30 . 30 . . . . . . . . . . . . . . . . . . . . . . . . . . . . . . . . . . . . Disable Machine 1170 | . 15 . 45 15 45 15 30 . 15 . . . . . 15 15 15 30 195 . 45 30 60 60 75 . . . . . . . . . . 15 105 . 165 120 45 Anti-Garrison Action 2900 | . . . . 600 . 550 . 150 . . . . . . . . . . 150 . 350 . 650 . 300 . . . . . . . . . . . . . . . 150 Destroy Structure 2516 | . . 6 9 66 28 79 59 51 3 . . . . . 10 44 4 4 150 . 230 88 251 152 201 16 . . . . 54 . . . . 24 120 27 204 198 438 Advance Influence 1350 | . . . . . . . . . . . . . . . . . . . . . . . . . . . . . . . 600 . . . . 750 . . . . . Partial Spotted 90 | . . . 15 . . . . 15 . . . . . . . . . . . . . . . . . . . . . . 15 . . . . . . . 30 15 . Lose Combat Pursuer 930 | . 45 45 . 30 . 75 30 90 . 135 . . . . . . . . . . . . 30 . 150 . 75 . . 45 . . . 60 . . 30 . 30 45 15 Influence Decreases 25887 | . 311 614 845 235 1637 305 1580 465 1097 757 384 . . 130 132 859 300 191 373 899 258 2430 128 1547 480 1365 836 404 309 148 567 595 . 267 1342 344 813 377 902 967 694 Entered New Map 12333 | . . 66 177 105 771 225 880 335 697 238 40 . . . . 3 70 131 143 709 158 1062 88 933 420 1185 454 126 309 . 7 163 . . 1337 . 245 217 81 264 694 Time Decay 9914 | . 281 458 618 . 506 . 490 . 380 519 324 . . 130 132 546 180 60 130 190 . 428 . 434 . 160 342 278 . 148 350 432 . 187 5 334 458 160 701 553 . Search Patrol Dispatched 300 | . . . . . . . . . . . . . . . . . . . . . . . . . . . . . . . 200 . . . . . 100 . . . . Lost Part 810 | . 30 90 50 90 20 80 . 130 20 . . . . . . 20 10 . . . . . 40 10 60 . . . . . 10 . . 20 . . 10 . 120 . . Lost Ally 730 | . . . . 40 40 . 60 . . . 20 . . . . 140 40 . 100 . 100 40 . 20 . 20 40 . . . . . . 60 . 10 . . . . . Purge Threat 1800 | . . . . . 300 . 150 . . . . . . . . 150 . . . . . 900 . 150 . . . . . . . . . . . . . . . 150 . Squads Dispatched 112 | . 4 3 4 . 4 . 4 . 2 . . . . . . 2 . . 6 1 . 7 . 4 . . . . . . 5 . . . . 6 4 3 6 11 36 Investigation 14 | . 2 1 2 . 2 . 1 . . . . . . . . 1 . . . . . . . 1 . . . . . . 1 . . . . 3 . . . . . Extermination 18 | . . . . . . . . . 1 . . . . . . . . . 1 1 . 2 . 3 . . . . . . 1 . . . . . 2 . 3 4 . Reinforcement 27 | . 2 2 1 . 1 . . . 1 . . . . . . 1 . . 3 . . 2 . . . . . . . . . . . . . 3 2 3 3 . 3 Assault 45 | . . . . . . . 3 . . . . . . . . . . . 2 . . . . . . . . . . . . . . . . . . . . 7 33 Garrison 8 | . . . 1 . 1 . . . . . . . . . . . . . . . . 3 . . . . . . . . 3 . . . . . . . . . . Intercept . | . . . . . . . . . . . . . . . . . . . . . . . . . . . . . . . . . . . . . . . . . . Searches Triggered 3 | . . . . . . . . . . . . . . . . . . . . . . . . . . . . . . . 2 . . . . . 1 . . . . Construction Impeded 6 | . . . . . . . . . . . . . . . . 1 . . 1 . . 1 . . . . . . . . . . . . . . 1 . . . 2 Haulers Reinforced 4 | . . . . . . . . . . . . . . . . . . . . . . 1 . . . . . . . . . . . . . 1 . 2 . . . Active Scanning Responses . | . . . . . . . . . . . . . . . . . . . . . . . . . . . . . . . . . . . . . . . . . . Cargo Convoy Interrupts . | . . . . . . . . . . . . . . . . . . . . . . . . . . . . . . . . . . . . . . . . . . Stealth | -11 -10 -9 -8 -8 -8 -8 -8 -8 -7 -7 -7 -7 -7 -6 -6 -6 -6 -6 -6 -5 -5 -5 -5 -5 -5 -5 -5 -5 -5 -4 -4 -4 -4 -4 -3 -3 -3 -2 -2 -2 -1 --------- Run | Yrd Mat Mat Mat Gar Mat Gar Mat Gar Fac Low Low Zio Dee Pro Fac Ext Cet Arc Hub Fac Gar Fac Gar Fac Gar Fac Upp Upp Zhi Pro Fac Upp Upp War Pro Res Tes Res Qua Sec Acc Distress Signals 46 | . . 2 2 1 4 . 8 . . . . . . . . . 2 . 3 . . 2 . . . . . . . 2 . . . . . 5 1 9 1 2 2 Communications Jammed . | . . . . . . . . . . . . . . . . . . . . . . . . . . . . . . . . . . . . . . . . . . Distress Signals . | . . . . . . . . . . . . . . . . . . . . . . . . . . . . . . . . . . . . . . . . . . Times Spotted 999 | . 20 38 48 34 37 30 42 35 11 21 6 . 59 6 4 33 9 6 20 . 48 17 42 21 39 3 10 2 . 9 13 7 . 114 2 13 28 2 55 69 46 Peak Tracking Total 37 | . 4 5 6 5 8 5 7 6 4 8 4 . 37 3 3 3 5 1 7 . 8 4 7 4 7 3 5 2 . 7 4 5 . 12 2 6 5 1 10 34 13 Tactical Retreats 43 | . 2 2 . 2 . 4 2 3 . 5 . . . . . . . . . . . . 2 . 4 . 5 . . 1 . . . 3 . . 2 . 2 3 1 Traps | -11 -10 -9 -8 -8 -8 -8 -8 -8 -7 -7 -7 -7 -7 -6 -6 -6 -6 -6 -6 -5 -5 -5 -5 -5 -5 -5 -5 -5 -5 -4 -4 -4 -4 -4 -3 -3 -3 -2 -2 -2 -1 ------- Run | Yrd Mat Mat Mat Gar Mat Gar Mat Gar Fac Low Low Zio Dee Pro Fac Ext Cet Arc Hub Fac Gar Fac Gar Fac Gar Fac Upp Upp Zhi Pro Fac Upp Upp War Pro Res Tes Res Qua Sec Acc Traps Triggered 58 | . 1 2 1 10 1 7 . 2 1 . . . . . . 2 . . 1 . 5 . 10 2 6 . 1 1 . . 2 . . 1 . 1 . . 1 . . Indirectly 1 | . . . . . . . . . . . . . . . . . . . 1 . . . . . . . . . . . . . . . . . . . . . . Trap Hack Attempts . | . . . . . . . . . . . . . . . . . . . . . . . . . . . . . . . . . . . . . . . . . . Triggered . | . . . . . . . . . . . . . . . . . . . . . . . . . . . . . . . . . . . . . . . . . . Disarmed . | . . . . . . . . . . . . . . . . . . . . . . . . . . . . . . . . . . . . . . . . . . Reprogrammed . | . . . . . . . . . . . . . . . . . . . . . . . . . . . . . . . . . . . . . . . . . . Reused 1 | . . . . . . . . . . . . . 1 . . . . . . . . . . . . . . . . . . . . . . . . . . . . Traps Extracted . | . . . . . . . . . . . . . . . . . . . . . . . . . . . . . . . . . . . . . . . . . . Installed 2 | . . . . . . . . . . . . . 2 . . . . . . . . . . . . . . . . . . . . . . . . . . . . Triggered . | . . . . . . . . . . . . . . . . . . . . . . . . . . . . . . . . . . . . . . . . . . Most Traps Carried 2 | . . . . . . . . . . 2 2 2 2 . . . . . . . . . . . . . . . . . . . . . . . . . . . . Machines | -11 -10 -9 -8 -8 -8 -8 -8 -8 -7 -7 -7 -7 -7 -6 -6 -6 -6 -6 -6 -5 -5 -5 -5 -5 -5 -5 -5 -5 -5 -4 -4 -4 -4 -4 -3 -3 -3 -2 -2 -2 -1 ---------- Run | Yrd Mat Mat Mat Gar Mat Gar Mat Gar Fac Low Low Zio Dee Pro Fac Ext Cet Arc Hub Fac Gar Fac Gar Fac Gar Fac Upp Upp Zhi Pro Fac Upp Upp War Pro Res Tes Res Qua Sec Acc Machines Disabled 131 | . 1 . 3 6 3 7 2 3 1 . . . 3 1 1 3 1 2 14 . 10 2 16 4 9 . . . . . . . . 5 . 1 9 . 12 8 4 Max in Single Turn 11 | . 1 . 1 1 1 1 1 1 1 . . . 1 1 1 1 1 . 11 . 2 . 2 1 1 . . . . . . . . 1 . 1 1 . 3 1 1 Garrison Access 5 | . . . . . . . . . . . . . . . 1 . . . 1 . . . . . . . . . . . . . . . . . 1 . . 1 1 Garrison Relay 30 | . . . . 5 . 6 . 3 . . . . . . . . . . . . 4 . 8 . 4 . . . . . . . . . . . . . . . . Phase Generator 2 | . . . . . . . . . . . . . . . . . . . . . 1 . 1 . . . . . . . . . . . . . . . . . . Network Hub 1 | . . . . . . . . . . . . . . . . . . . 1 . . . . . . . . . . . . . . . . . . . . . . Energy Cycler 1 | . . . . . . . . . . . . . . . . . . . . . . . . . . . . . . . . . . . . . . . . . 1 Machines Repaired . | . . . . . . . . . . . . . . . . . . . . . . . . . . . . . . . . . . . . . . . . . . Machines Dismantled . | . . . . . . . . . . . . . . . . . . . . . . . . . . . . . . . . . . . . . . . . . . Machines Sabotaged . | . . . . . . . . . . . . . . . . . . . . . . . . . . . . . . . . . . . . . . . . . . Overloaded Fab Kills . | . . . . . . . . . . . . . . . . . . . . . . . . . . . . . . . . . . . . . . . . . . Hacking | -11 -10 -9 -8 -8 -8 -8 -8 -8 -7 -7 -7 -7 -7 -6 -6 -6 -6 -6 -6 -5 -5 -5 -5 -5 -5 -5 -5 -5 -5 -4 -4 -4 -4 -4 -3 -3 -3 -2 -2 -2 -1 --------- Run | Yrd Mat Mat Mat Gar Mat Gar Mat Gar Fac Low Low Zio Dee Pro Fac Ext Cet Arc Hub Fac Gar Fac Gar Fac Gar Fac Upp Upp Zhi Pro Fac Upp Upp War Pro Res Tes Res Qua Sec Acc Machines Accessed 114 | . 5 7 7 4 10 2 3 . 5 1 1 . . . 5 14 . . 3 3 2 3 1 3 . 1 1 . 4 . 2 1 1 4 . 2 7 . 6 6 . Terminals 69 | . 3 6 3 4 7 2 1 . 4 1 . . . . 3 13 . . 3 1 2 . 1 . . . . . . . 1 1 . . . 1 4 . 4 4 . Fabricators 2 | . . . . . . . . . . . . . . . . . . . . . . . . . . . . . . . 1 . . . . . 1 . . . . Repair Stations 4 | . . . 1 . . . . . 1 . . . . . . 1 . . . 1 . . . . . . . . . . . . . . . . . . . . . Recycling Units 6 | . 2 1 1 . 1 . . . . . . . . . 1 . . . . . . . . . . . . . . . . . . . . . . . . . . Scanalyzers 11 | . . . 1 . 1 . 1 . . . . . . . . . . . . . . 1 . 1 . 1 . . . . . . . . . 1 1 . 2 1 . Garrison Access 11 | . . . 1 . 1 . 1 . . . . . . . 1 . . . . 1 . 2 . 2 . . . . . . . . . . . . 1 . . 1 . Total Hacks 264 | . 12 17 18 8 25 4 6 . 7 6 1 . . . 9 33 . . 3 9 3 6 1 8 . 2 1 . 17 . 9 1 1 8 . 3 18 . 16 12 . Successful 143 | . 5 6 10 3 14 . 4 . 2 6 1 . . . 6 19 . . 1 5 . 3 . 2 . . 1 . 17 . 6 1 1 8 . . 9 . 7 6 . Failed 120 | . 7 11 8 5 10 4 2 . 5 . . . . . 3 14 . . 2 4 3 3 1 6 . 2 . . . . 3 . . . . 3 9 . 9 6 . Catastrophic 23 | . . 1 . 1 . 1 1 . 3 . . . . . . 4 . . . 1 1 1 1 1 . . . . . . . . . . . 1 4 . 2 . . Database Lockouts 1 | . . . . . 1 . . . . . . . . . . . . . . . . . . . . . . . . . . . . . . . . . . . . Manual 97 | . 13 17 8 1 13 . 2 . 2 . . 10 . . 2 13 1 . 1 4 . . . . . . . . . . 6 . . . . . 2 . 2 . . Terminals 155 | . 10 16 9 8 20 4 2 . 6 6 . . . . 6 28 . . 3 4 3 . 1 . . . . . . . 4 1 . . . 1 9 . 7 7 . Fabricators 6 | . . . . . . . . . . . . . . . . . . . . . . . . . . . . . . . 5 . . . . . 1 . . . . Repair Stations 15 | . . . 5 . . . . . 1 . . . . . . 5 . . . 4 . . . . . . . . . . . . . . . . . . . . . Recycling Units 6 | . 2 1 1 . 1 . . . . . . . . . 1 . . . . . . . . . . . . . . . . . . . . . . . . . . Scanalyzers 36 | . . . 2 . 3 . 3 . . . . . . . . . . . . . . 2 . 4 . 2 . . . . . . . . . 2 6 . 9 3 . Garrison Access 18 | . . . 1 . 1 . 1 . . . . . . . 2 . . . . 1 . 4 . 4 . . . . . . . . . . . . 2 . . 2 . Terminal Hacks 71 | . 1 . 1 3 5 . 1 . 1 6 1 . . . 4 8 . . 1 1 . . . . . . 1 . 17 . 3 1 1 8 . . 3 . 2 2 . Record 21 | . . . . . . . . . . 6 . . . . . . . . 1 . . . . . . . . . 5 . . 1 . 7 . . . . 1 . . Part Schematic 7 | . 1 . 1 . . . . . . . . . . . . . . . . . . . . . . . . . 4 . 1 . . . . . . . . . . Robot Analysis 5 | . . . . . . . . . . . . . . . . . . . . 1 . . . . . . . . 4 . . . . . . . . . . . . Prototype ID Bank 6 | . . . . . . . . . . . . . . . 1 1 . . . . . . . . . . . . 4 . . . . . . . . . . . . Open Door 13 | . . . . . . . . . . . 1 . . . 1 5 . . . . . . . . . . 1 . . . . . 1 1 . . 1 . 1 1 . Branch Access Points 1 | . . . . . . . . . . . . . . . . . . . . . . . . . . . . . . . 1 . . . . . . . . . . Emergency Access Points 5 | . . . . 1 1 . . . . . . . . . 1 . . . . . . . . . . . . . . . 1 . . . . . 1 . . . . Terminal Index 1 | . . . . . 1 . . . . . . . . . . . . . . . . . . . . . . . . . . . . . . . . . . . . Unreport Threat 4 | . . . . . 2 . 1 . . . . . . . . 1 . . . . . . . . . . . . . . . . . . . . . . . . . Locate Traps 3 | . . . . . 1 . . . . . . . . . . 1 . . . . . . . . . . . . . . . . . . . . 1 . . . . Maintenance Status 1 | . . . . . . . . . . . . . . . 1 . . . . . . . . . . . . . . . . . . . . . . . . . . Reinforcement Status 1 | . . . . . . . . . 1 . . . . . . . . . . . . . . . . . . . . . . . . . . . . . . . . Patrol Navigation 1 | . . . . 1 . . . . . . . . . . . . . . . . . . . . . . . . . . . . . . . . . . . . . Security Stations 1 | . . . . 1 . . . . . . . . . . . . . . . . . . . . . . . . . . . . . . . . . . . . . Activate Exoskeleton 1 | . . . . . . . . . . . . . . . . . . . . . . . . . . . . . . . . . . . . . . . . 1 . Fabricator Hacks 2 | . . . . . . . . . . . . . . . . . . . . . . . . . . . . . . . 2 . . . . . . . . . . Load Schematic 1 | . . . . . . . . . . . . . . . . . . . . . . . . . . . . . . . 1 . . . . . . . . . . Build 1 | . . . . . . . . . . . . . . . . . . . . . . . . . . . . . . . 1 . . . . . . . . . . Repair Station Hacks 7 | . . . 2 . . . . . . . . . . . . 4 . . . 1 . . . . . . . . . . . . . . . . . . . . . Scan Component 5 | . . . 2 . . . . . . . . . . . . 2 . . . 1 . . . . . . . . . . . . . . . . . . . . . Repair 2 | . . . . . . . . . . . . . . . . 2 . . . . . . . . . . . . . . . . . . . . . . . . . Recycling Unit Hacks 1 | . . . . . . . . . . . . . . . 1 . . . . . . . . . . . . . . . . . . . . . . . . . . Retrieve Components 1 | . . . . . . . . . . . . . . . 1 . . . . . . . . . . . . . . . . . . . . . . . . . . Scanalyzer 19 | . . . 1 . 1 . 2 . . . . . . . . . . . . . . 2 . 1 . . . . . . . . . . . . 4 . 5 3 . Insert Component 4 | . . . . . . . . . . . . . . . . . . . . . . . . . . . . . . . . . . . . . 1 . 3 . . Retrieve Study 15 | . . . 1 . 1 . 2 . . . . . . . . . . . . . . 2 . 1 . . . . . . . . . . . . 3 . 2 3 . Garrison Access Hacks 9 | . . . 1 . 1 . 1 . . . . . . . 1 . . . . 1 . 1 . 1 . . . . . . . . . . . . 1 . . 1 . Unlock Access 6 | . . . 1 . 1 . 1 . . . . . . . . . . . . 1 . 1 . 1 . . . . . . . . . . . . . . . . . Seal Access 3 | . . . . . . . . . . . . . . . 1 . . . . . . . . . . . . . . . . . . . . . 1 . . 1 . Unauthorized Hacks 34 | . 4 6 5 . 7 . . . 1 . . . . . . 7 . . . 2 . . . . . . . . . . 1 . . . . . 1 . . . . Terminals 27 | . 2 5 4 . 6 . . . 1 . . . . . . 7 . . . 2 . . . . . . . . . . . . . . . . . . . . . Botnet 9 | . . 2 2 . 1 . . . 1 . . . . . . 2 . . . 1 . . . . . . . . . . . . . . . . . . . . . Skim 18 | . 2 3 2 . 5 . . . . . . . . . . 5 . . . 1 . . . . . . . . . . . . . . . . . . . . . Fabricators 1 | . . . . . . . . . . . . . . . . . . . . . . . . . . . . . . . 1 . . . . . . . . . . Prioritize 1 | . . . . . . . . . . . . . . . . . . . . . . . . . . . . . . . 1 . . . . . . . . . . Repair Stations . | . . . . . . . . . . . . . . . . . . . . . . . . . . . . . . . . . . . . . . . . . . Recycling Units 5 | . 2 1 1 . 1 . . . . . . . . . . . . . . . . . . . . . . . . . . . . . . . . . . . . Tunnel 5 | . 2 1 1 . 1 . . . . . . . . . . . . . . . . . . . . . . . . . . . . . . . . . . . . Scanalyzers 1 | . . . . . . . . . . . . . . . . . . . . . . . . . . . . . . . . . . . . . 1 . . . . Researchers 1 | . . . . . . . . . . . . . . . . . . . . . . . . . . . . . . . . . . . . . 1 . . . . Garrison Access . | . . . . . . . . . . . . . . . . . . . . . . . . . . . . . . . . . . . . . . . . . . Data Cores Recovered 4 | . . 1 . . 1 . . . . . . . . . . 1 . . . . . . . . . . . . . . . . . . . . . . 1 . . Used 2 | . . . . . . . . . . . . . . . . 1 . . . . . . . . . . . . . . . . . . . . . . 1 . . Hacking Detections 74 | . 3 6 3 4 5 2 2 . 5 1 . . . . 3 10 . . 3 3 2 3 1 1 . 1 . . . . 2 . . . . 2 4 . 4 4 . Full Trace Events 6 | . . . 1 1 . 1 1 . . 1 . . . . . . . . . . . . . . . . . . . . 1 . . . . . . . . . . Feedback Events . | . . . . . . . . . . . . . . . . . . . . . . . . . . . . . . . . . . . . . . . . . . Feedback Blocked . | . . . . . . . . . . . . . . . . . . . . . . . . . . . . . . . . . . . . . . . . . . Robot Schematics Acquired 3 | . . . . . . . . . . . . . . . . . . . . . . . . . . . . . . . . . . . . . . . 3 . . Robots Built . | . . . . . . . . . . . . . . . . . . . . . . . . . . . . . . . . . . . . . . . . . . Authchips . | . . . . . . . . . . . . . . . . . . . . . . . . . . . . . . . . . . . . . . . . . . Time . | . . . . . . . . . . . . . . . . . . . . . . . . . . . . . . . . . . . . . . . . . . Total Robot Build Rating . | . . . . . . . . . . . . . . . . . . . . . . . . . . . . . . . . . . . . . . . . . . Part Schematics Acquired 11 | . 1 . . . . . . . . . . . . . . . . . . . . . . . . . . . 4 . 1 . . . . . 3 . 2 . . Parts Built 1 | . . . . . . . . . . . . . . . . . . . . . . . . . . . . . . . 1 . . . . . . . . . . Authchips . | . . . . . . . . . . . . . . . . . . . . . . . . . . . . . . . . . . . . . . . . . . Time 25 | . . . . . . . . . . . . . . . . . . . . . . . . . . . . . . . 25 . . . . . . . . . . Total Part Build Rating 1 | . . . . . . . . . . . . . . . . . . . . . . . . . . . . . . . 1 . . . . . . . . . . Part Studies Acquired 12 | . . . 1 . 1 . . . . . . . . . . . . . . . . 2 . . . . . . . . . . . . . . 3 . 2 3 . Parts Repaired 2 | . . . . . . . . . . . . . . . . 2 . . . . . . . . . . . . . . . . . . . . . . . . . Time 139 | . . . . . . . . . . . . . . . . 139 . . . . . . . . . . . . . . . . . . . . . . . . . Parts Recycled . | . . . . . . . . . . . . . . . . . . . . . . . . . . . . . . . . . . . . . . . . . . Recycled Matter . | . . . . . . . . . . . . . . . . . . . . . . . . . . . . . . . . . . . . . . . . . . Retrieved Matter . | . . . . . . . . . . . . . . . . . . . . . . . . . . . . . . . . . . . . . . . . . . Retrieved Components 1 | . . . . . . . . . . . . . . . 1 . . . . . . . . . . . . . . . . . . . . . . . . . . Parts Scanalyzed . | . . . . . . . . . . . . . . . . . . . . . . . . . . . . . . . . . . . . . . . . . . Part Schematics Acquired . | . . . . . . . . . . . . . . . . . . . . . . . . . . . . . . . . . . . . . . . . . . Parts Damaged . | . . . . . . . . . . . . . . . . . . . . . . . . . . . . . . . . . . . . . . . . . . Bothacking | -11 -10 -9 -8 -8 -8 -8 -8 -8 -7 -7 -7 -7 -7 -6 -6 -6 -6 -6 -6 -5 -5 -5 -5 -5 -5 -5 -5 -5 -5 -4 -4 -4 -4 -4 -3 -3 -3 -2 -2 -2 -1 ------------ Run | Yrd Mat Mat Mat Gar Mat Gar Mat Gar Fac Low Low Zio Dee Pro Fac Ext Cet Arc Hub Fac Gar Fac Gar Fac Gar Fac Upp Upp Zhi Pro Fac Upp Upp War Pro Res Tes Res Qua Sec Acc Used RIF Installer . | . . . . . . . . . . . . . . . . . . . . . . . . . . . . . . . . . . . . . . . . . . Robots Hacked . | . . . . . . . . . . . . . . . . . . . . . . . . . . . . . . . . . . . . . . . . . . Non-combat . | . . . . . . . . . . . . . . . . . . . . . . . . . . . . . . . . . . . . . . . . . . Combat . | . . . . . . . . . . . . . . . . . . . . . . . . . . . . . . . . . . . . . . . . . . Robot Hacks Applied . | . . . . . . . . . . . . . . . . . . . . . . . . . . . . . . . . . . . . . . . . . . Relay Couplers Released 125 | . . . . 15 . 24 . 16 . . . . . . . . . . 2 . 15 . 36 . 16 . . . . . . . . . . . . . . . 1 Machine Destruction 121 | . . . . 15 . 24 . 12 . . . . . . . . . . 2 . 15 . 36 . 16 . . . . . . . . . . . . . . . 1 Programmers 4 | . . . . . . . . 4 . . . . . . . . . . . . . . . . . . . . . . . . . . . . . . . . . Fabnet Peak Effective % . | . . . . . . . . . . . . . . . . . . . . . . . . . . . . . . . . . . . . . . . . . . Robots Rewired 38 | . . . . 5 . 3 . . . 2 . . . . . 16 . . . . 2 . 2 . 3 . . . . . . . . 5 . . . . . . . Allies Hacked . | . . . . . . . . . . . . . . . . . . . . . . . . . . . . . . . . . . . . . . . . . . Hacks Repelled . | . . . . . . . . . . . . . . . . . . . . . . . . . . . . . . . . . . . . . . . . . . Allies | -11 -10 -9 -8 -8 -8 -8 -8 -8 -7 -7 -7 -7 -7 -6 -6 -6 -6 -6 -6 -5 -5 -5 -5 -5 -5 -5 -5 -5 -5 -4 -4 -4 -4 -4 -3 -3 -3 -2 -2 -2 -1 -------- Run | Yrd Mat Mat Mat Gar Mat Gar Mat Gar Fac Low Low Zio Dee Pro Fac Ext Cet Arc Hub Fac Gar Fac Gar Fac Gar Fac Upp Upp Zhi Pro Fac Upp Upp War Pro Res Tes Res Qua Sec Acc Total Allies 55 | . . . . 5 . 3 . . . 2 . 2 . . . 25 5 . . . 2 . 2 . 3 . . . . . . . . 5 . . . . . 1 . Largest Group 20 | . . . . 3 2 2 3 . . 2 2 3 3 . . 17 20 20 19 8 6 2 2 2 3 3 2 . . . . . . 5 1 1 . . . 1 1 Highest-Rated Group 1204 | . . . . 82 33 32 48 . . 50 50 217 217 . . 631 1044 1044 882 556 440 208 238 238 87 87 58 . . . . . . 290 63 63 . . . 1204 1204 Highest-Rated Ally 1204 | . . . . 31 18 16 16 . . 25 25 96 96 . . 159 159 159 96 96 119 119 119 119 29 29 29 . . . . . . 68 63 63 . . . 1204 1204 Initial Warlord ECA Mod 47 | . . . . . 9 9 19 19 21 21 21 21 21 20 20 20 20 20 20 19 19 28 28 41 41 47 47 47 47 46 46 46 46 46 . . . . . . . Total Orders 40 | . . . . . . . . . . . . 2 . . . . . . . . 8 7 1 1 2 1 2 . . . . . . 9 . . . . 3 4 . STAY 12 | . . . . . . . . . . . . 1 . . . . . . . . 3 . . . . . 1 . . . . . . 7 . . . . . . . FOLLOW 10 | . . . . . . . . . . . . 1 . . . . . . . . 5 1 . . . . 1 . . . . . . 2 . . . . . . . RETURN 18 | . . . . . . . . . . . . . . . . . . . . . . 6 1 1 2 1 . . . . . . . . . . . . 3 4 . Ally Attacks 565 | . . . . 13 8 . 40 . . . 8 . 44 . . 69 44 25 59 . 73 12 . 26 . 7 2 . . . . . . 47 . . . . . 9 79 Total Damage 20808 | . . . . 244 179 . 495 . . . 140 . 1219 . . 1330 904 622 1608 . 2350 740 . 1160 . 137 . . . . . . . 1411 . . . . . 780 7489 Kills 118 | . . . . 2 2 . 5 . . . 1 . 11 . . 6 5 2 10 . 20 2 . 14 . 1 . . . . . . . 10 . . . . . 3 24 Allies Corrupted 5 | . . . . 1 . . . . . . . . . . . . . . 1 2 . 1 . . . . . . . . . . . . . . . . . . . Allies Melted 1 | . . . . . . . . . . . . . . . . . . . . . . . . . . . . . . . . . . 1 . . . . . . . Intel | -11 -10 -9 -8 -8 -8 -8 -8 -8 -7 -7 -7 -7 -7 -6 -6 -6 -6 -6 -6 -5 -5 -5 -5 -5 -5 -5 -5 -5 -5 -4 -4 -4 -4 -4 -3 -3 -3 -2 -2 -2 -1 ------- Run | Yrd Mat Mat Mat Gar Mat Gar Mat Gar Fac Low Low Zio Dee Pro Fac Ext Cet Arc Hub Fac Gar Fac Gar Fac Gar Fac Upp Upp Zhi Pro Fac Upp Upp War Pro Res Tes Res Qua Sec Acc Active Infowar (turns) 25892 | . . 875 . . . . . . 898 2003 1197 1044 337 1447 479 870 . . . 376 8 349 39 988 13 213 658 537 727 361 600 1267 837 1628 790 753 1141 323 3007 1653 474 Optics 12452 | . . . . . . . . . . . . . . . . . . . . . . . . . . . . . . . 579 1267 837 1628 790 753 1141 323 3007 1653 474 IFF 19486 | . . . . . . . . . 898 2003 1197 1044 337 1447 479 870 . . . 376 8 206 . 961 13 203 656 535 724 361 503 1267 837 1006 790 753 941 16 1055 . . Terrain 7475 | . . . . . . . . . . . . . . . . . . . . . . . . 180 10 212 612 2 3 . 98 999 837 1142 790 753 676 113 129 445 474 Seismic 2886 | . . 875 . . . . . . 277 1734 . . . . . . . . . . . . . . . . . . . . . . . . . . . . . . . Decoding 2 | . . . . . . . . . . . . . . . . . . . . . . . . . . . . . . . . . . 2 . . . . . . . Jamming 209 | . . . . . . . . . . . . . . . . . . . . . . 143 39 27 . . . . . . . . . . . . . . . . . ECM 1 | . . . . . . . . . . . . . . . . . . . . . . . . . . . . . . . . . . . . . . . 1 . . Robot Analysis Total 5 | . . . . . . . . . . . . . . . . . . . . 1 . . . . . . . . 4 . . . . . . . . . . . . Derelict Logs Recovered 13 | . . . . . . . . . . 1 2 1 . 2 . . . . . . . . . . . . 1 1 . 1 . 3 1 . . . . . . . . Drone Launches 18 | . . . . . . . . . . . . . . . . . . . . . . 6 1 1 2 1 . . . . . . . . . . . . 3 4 . Drone Recoveries 18 | . . . . . . . . . . . . . . . . . . . . . . 6 1 1 2 1 . . . . . . . . . . . . 3 4 . Exploration | -11 -10 -9 -8 -8 -8 -8 -8 -8 -7 -7 -7 -7 -7 -6 -6 -6 -6 -6 -6 -5 -5 -5 -5 -5 -5 -5 -5 -5 -5 -4 -4 -4 -4 -4 -3 -3 -3 -2 -2 -2 -1 ------------- Run | Yrd Mat Mat Mat Gar Mat Gar Mat Gar Fac Low Low Zio Dee Pro Fac Ext Cet Arc Hub Fac Gar Fac Gar Fac Gar Fac Upp Upp Zhi Pro Fac Upp Upp War Pro Res Tes Res Qua Sec Acc Turns Passed 50403 | 107 903 1159 2078 2236 1369 1914 1285 1188 898 2003 1197 1471 4683 1447 548 2012 377 123 275 380 1673 1048 1832 1065 1506 333 778 618 736 508 780 1267 837 1628 790 753 1141 323 3007 1653 474 Spaces Moved 26721 | 62 466 630 814 869 506 707 507 498 507 1085 952 1170 2982 984 307 1062 199 48 141 99 711 527 660 749 731 222 546 477 134 350 319 945 638 832 408 414 686 147 1369 983 278 Core 54 | 5 . . . . . . . . . . . 49 . . . . . . . . . . . . . . . . . . . . . . . . . . . . . Treads 4208 | 57 337 135 814 869 506 707 507 276 . . . . . . . . . . . . . . . . . . . . . . . . . . . . . . . . . Legs 21730 | . . . . . . . . 222 507 1085 952 1121 2982 984 307 1062 199 48 141 99 711 527 660 749 731 222 546 477 134 350 319 945 638 832 408 414 686 147 1369 878 278 Wheels 624 | . 129 495 . . . . . . . . . . . . . . . . . . . . . . . . . . . . . . . . . . . . . . . Hover . | . . . . . . . . . . . . . . . . . . . . . . . . . . . . . . . . . . . . . . . . . . Flight . | . . . . . . . . . . . . . . . . . . . . . . . . . . . . . . . . . . . . . . . . . . Fastest Speed 50 | 50 115 95 160 206 206 208 206 127 125 117 120 50 115 130 128 128 128 128 128 128 179 123 120 120 112 124 124 124 124 124 124 128 128 116 116 121 119 119 111 122 122 Average Speed 143 | 151 147 120 184 210 219 215 206 170 150 169 120 118 123 130 157 128 128 128 128 173 184 142 172 121 123 124 125 124 124 124 155 128 128 143 124 121 119 119 132 127 122 Slowest Speed 272 | 160 160 240 240 221 225 225 208 272 197 195 120 130 203 130 195 128 128 128 128 194 194 186 186 124 176 124 177 175 124 124 178 128 182 187 180 122 121 122 186 183 122 Overloaded Moves . | . . . . . . . . . . . . . . . . . . . . . . . . . . . . . . . . . . . . . . . . . . Propulsion Burnouts . | . . . . . . . . . . . . . . . . . . . . . . . . . . . . . . . . . . . . . . . . . . Robots Hopped . | . . . . . . . . . . . . . . . . . . . . . . . . . . . . . . . . . . . . . . . . . . Potential Cave-ins 16 | . . . . . . . . . . . . . . . . . . . . . . . . . . . . . . . 3 . . 2 . . 9 . 2 . . Cave-ins Triggered . | . . . . . . . . . . . . . . . . . . . . . . . . . . . . . . . . . . . . . . . . . . Teleports 2 | . . . . . . . . . . . . . . . . . . . . . . . . . . . . . . . . . . . . . . . 1 1 . Microwarps 6 | . . . . . . . . . . . . . . . . . . . . . . . . . . . . . . . . . . . . . . . . 6 . Exploration Rate (%) 57 | 6 78 49 69 89 73 72 54 52 13 95 98 82 83 93 10 96 73 74 27 3 86 19 89 29 73 6 61 67 60 53 9 96 76 76 57 13 87 7 98 66 14 Regions Visited 41 Branch Regions 20 Pre-discovered Areas 16 | . 2 1 1 . 4 . . . . 2 1 . . . . . . . . . . . . . . . . 1 3 . . 1 . . . . . . . . . Known Exits Taken 22 | . . . 1 . 1 . 1 . 1 1 1 . . 1 1 1 . . 1 1 . 1 . 1 . 1 1 1 . 1 1 . . . 1 1 . 1 . 1 . Unknown Exits Taken 13 | 1 1 1 . . . . . . . . . 1 1 . . . 1 1 . . . . . . . . . . 1 . . 1 1 1 . . 1 . 1 . . Scrap Searched 25 | . . . . . . . . . . 7 2 4 . 1 . . . . . . . . . . . . . 1 . 5 . 3 . . 2 . . . . . . Spaces Dug 290 | . . . . . . . 1 . 3 6 1 . . 3 2 . . . 3 . 11 18 36 2 . 6 5 . . 3 10 3 9 12 26 6 42 5 27 21 29 Terrain Destroyed 1742 | . . . 2 32 27 56 96 52 3 6 36 . 30 28 7 30 3 5 186 . 158 50 169 26 94 12 84 5 1 24 29 16 9 103 47 13 75 8 68 62 90 Melee 10 | . . . . . . . . . 3 6 1 . . . . . . . . . . . . . . . . . . . . . . . . . . . . . . Projectile 835 | . . . 2 2 27 2 4 . . . . . 6 28 7 30 3 5 25 . 40 50 62 26 62 12 19 5 1 24 29 16 9 45 47 13 75 8 68 62 21 AOE 897 | . . . . 30 . 54 92 52 . . 35 . 24 . . . . . 161 . 118 . 107 . 32 . 65 . . . . . . 58 . . . . . . 69 Terrain Rammed . | . . . . . . . . . . . . . . . . . . . . . . . . . . . . . . . . . . . . . . . . . . Walls Destroyed . | . . . . . . . . . . . . . . . . . . . . . . . . . . . . . . . . . . . . . . . . . . Machines Disabled . | . . . . . . . . . . . . . . . . . . . . . . . . . . . . . . . . . . . . . . . . . . Actions | -11 -10 -9 -8 -8 -8 -8 -8 -8 -7 -7 -7 -7 -7 -6 -6 -6 -6 -6 -6 -5 -5 -5 -5 -5 -5 -5 -5 -5 -5 -4 -4 -4 -4 -4 -3 -3 -3 -2 -2 -2 -1 --------- Run | Yrd Mat Mat Mat Gar Mat Gar Mat Gar Fac Low Low Zio Dee Pro Fac Ext Cet Arc Hub Fac Gar Fac Gar Fac Gar Fac Upp Upp Zhi Pro Fac Upp Upp War Pro Res Tes Res Qua Sec Acc Total 35421 | 72 558 869 1209 1121 645 950 658 705 605 1213 993 1257 3833 1109 351 1587 295 98 184 311 935 740 1141 849 1141 261 606 486 707 390 536 969 646 1071 652 634 884 278 2321 1213 338 Wait 4613 | 1 13 87 168 53 26 27 6 44 21 40 19 19 522 102 13 238 59 46 9 201 64 127 269 56 246 16 30 . 553 20 125 2 . 41 226 174 68 105 671 106 . Move 26586 | 62 465 629 814 868 506 706 507 497 506 1084 951 1169 2981 983 306 1061 198 47 140 98 710 527 659 749 730 221 545 476 133 349 318 944 637 831 407 413 685 146 1368 883 277 Hop . | . . . . . . . . . . . . . . . . . . . . . . . . . . . . . . . . . . . . . . . . . . Pick Up 400 | 3 7 26 43 14 12 8 15 12 7 12 2 22 66 2 5 8 7 . 2 1 10 2 9 3 6 2 2 . 2 1 21 3 1 11 . 5 9 . 17 14 8 Fast Attach 214 | 6 3 8 9 6 2 2 3 3 7 . . 17 31 . 2 3 4 . . . 7 6 2 1 2 1 2 . 5 . 8 . 1 10 . 3 5 3 30 22 . Attach 116 | . 2 9 9 8 2 6 . 12 4 . . 1 11 . 2 1 . . . 2 . . 4 1 3 1 1 . 1 . 3 1 . 3 . 1 3 3 6 15 1 Detach 169 | . 2 3 4 3 1 . . 1 2 . . 8 17 . 1 . . . . 5 4 3 9 . 5 3 3 . 6 1 7 1 1 8 1 4 12 8 26 18 2 Swap 326 | . 1 8 12 13 8 6 17 14 14 10 5 2 32 . 4 5 2 . . 1 6 13 8 8 12 3 4 3 1 3 5 . 2 21 . 3 12 4 34 27 3 Drop 461 | . 3 17 41 18 15 . 22 6 9 12 3 19 85 2 6 8 10 . 2 3 19 6 8 4 5 1 1 . 6 1 11 2 1 20 . 7 14 . 43 28 3 Fire 1944 | . 62 82 102 91 69 102 87 111 26 29 12 . 86 20 11 59 15 5 22 . 77 51 112 27 91 13 18 6 . 15 37 16 3 102 18 21 76 9 118 99 44 Melee 17 | . . . . . . . . . 3 6 1 . . . . . . . . . . . . . . . . . . . . . . . . . . . 7 . . Ram . | . . . . . . . . . . . . . . . . . . . . . . . . . . . . . . . . . . . . . . . . . . Kick 27 | . . . . . . . . . 1 . . . . . 1 3 . . 9 . . 5 . . . . . 1 . . 1 . . 1 . 3 . . 1 1 . Crush 14 | . . . 7 1 4 . 1 1 . . . . . . . . . . . . . . . . . . . . . . . . . . . . . . . . . Escape Stasis 139 | . . . . 14 . 14 . 4 5 . . . . . . 10 . . . . 31 . 42 . 19 . . . . . . . . . . . . . . . . Rewire 393 | . . . . 32 . 79 . . . 20 . . . . . 191 . . . . 7 . 19 . 22 . . . . . . . . 23 . . . . . . . Trap 2 | . . . . . . . . . . . . . 2 . . . . . . . . . . . . . . . . . . . . . . . . . . . . Miscellaneous . | . . . . . . . . . . . . . . . . . . . . . . . . . . . . . . . . . . . . . . . . . . Route ------- -11/Scrapyard -10/Materials (discovered 3 exits: *Mat x2 / [*Min]) -9/Materials -8/Materials (discovered 4 exits: *Fac x3 / Gar) -8/Garrison (discovered 3 exits: *Mat x3) -8/Materials (discovered 3 exits: *Fac x2 / Gar) -8/Garrison (discovered 4 exits: *Fac x3 / *Mat) -8/Materials (discovered 2 exits: *Fac / Gar) -8/Garrison (discovered 3 exits: *Fac x2 / [*Mat]) -7/Factory (discovered 4 exits: Fac / Sto / *Low x2) -7/Lower Caves -7/Lower Caves (discovered 2 exits: *Fac / *Zio) -7/Zion (discovered 2 exits: [*Dee] / *Pro) -7/Deep Caves -6/Proximity Caves -6/Factory (discovered 5 exits: Fac x2 / Low / *Ext x2) -6/Extension (discovered 3 exits: *Fac x2 / *Cet) -6/Cetus (discovered 2 exits: *Fac / [*Arc]) -6/Archives (discovered 2 exits: *Fac / *Hub) -6/Hub_04(d) (discovered 3 exits: *Fac x3) -5/Factory (discovered 2 exits: Upp / Gar) -5/Garrison (discovered 3 exits: *Fac x3) -5/Factory (discovered 7 exits: Fac x4 / *Upp x2 / Gar) -5/Garrison (discovered 3 exits: *Fac x3) -5/Factory (discovered 2 exits: *Fac / Gar) -5/Garrison (discovered 3 exits: *Fac x3) -5/Factory -5/Upper Caves -5/Upper Caves (discovered 2 exits: Fac / *Zhi) -5/Zhirov -4/Proximity Caves -4/Factory (discovered 5 exits: *Res x2 / *Upp x2 / Arm) -4/Upper Caves (discovered 2 exits: *Upp / *War) -4/Upper Caves (discovered 2 exits: *Res / *War) -4/Warlord -3/Proximity Caves -3/Research -3/Testing -2/Research (discovered 2 exits: *Acc / *Qua) -2/Quarantine (discovered 2 exits: *Sec / [*Frg]) -2/Section 7 -1/Access Tau Ceti IV Orbit History --------- Turn | Location | Event 5 | -11/Scrapyard | Discovered new exit (range 16) 108 | -11/Scrapyard | Entered Materials 223 | -10/Materials | Discovered new exit (range 10) 318 | -10/Materials | Build established: Mutant 337 | -10/Materials | Discovered new exit (range 8) 669 | -10/Materials | Discovered new exit (range 4) 1011 | -10/Materials | Entered another Materials area 1011 | -9/Materials | Evolved 2 slots: Utility x2 1222 | -9/Materials | Destroyed 8 combat bots 1405 | -9/Materials | Lost 3 parts (1p1n1w) 1598 | -9/Materials | Discovered new exit (range 7) 2098 | -9/Materials | Core integrity fell below 50% 2136 | -9/Materials | Core integrity fell below 20% 2170 | -9/Materials | Entered another Materials area 2170 | -8/Materials | Evolved 2 slots: Propulsion x2 2468 | -8/Materials | Discovered new exit (range 16) 3117 | -8/Materials | Discovered new exit (range 10) 3229 | -8/Materials | Build established: Scavenger-Mutant 3312 | -8/Materials | Discovered new exit (range 16) 3694 | -8/Materials | Garrison activated, responded to threat 4248 | -8/Materials | Identified exit to Garrison 4248 | -8/Materials | Entered Garrison 4261 | -8/Garrison | Learned Materials security intel 4356 | -8/Garrison | Triggered checkpoint 4401 | -8/Garrison | Garrison Relay disabled 4474 | -8/Garrison | Triggered checkpoint 4480 | -8/Garrison | Triggered checkpoint 4580 | -8/Garrison | Triggered checkpoint 4616 | -8/Garrison | Garrison Relay disabled 4654 | -8/Garrison | Garrison Relay disabled 4750 | -8/Garrison | Discovered new exit (range 15) 5088 | -8/Garrison | Triggered checkpoint 5239 | -8/Garrison | Discovered new exit (range 12) 5306 | -8/Garrison | Triggered checkpoint 5336 | -8/Garrison | Garrison Relay disabled 5426 | -8/Garrison | Triggered checkpoint 5648 | -8/Garrison | Triggered checkpoint 5720 | -8/Garrison | Garrison Relay disabled 6098 | -8/Garrison | Discovered new exit (range 7) 6484 | -8/Garrison | Entered Materials 6484 | -8/Materials | Accompanied by 2 allies 6520 | -8/Materials | Central database locked down 7032 | -8/Materials | Build established: Mutant 7179 | -8/Materials | Discovered new exit (range 13) 7326 | -8/Materials | Learned Factory emergency access door positions 7406 | -8/Materials | Learned Storage stockpile data 7536 | -8/Materials | Learned 2 Lower Caves zone layouts 7594 | -8/Materials | Discovered new exit (range 15) 7661 | -8/Materials | Learned location of 3 exits from Factory 7749 | -8/Materials | Learned location of Zion (-7) 7758 | -8/Materials | Garrison activated, responded to threat 7807 | -8/Materials | Learned Factory trap positions 7853 | -8/Materials | Identified exit to Garrison 7853 | -8/Materials | Entered Garrison 7875 | -8/Garrison | Triggered checkpoint 7922 | -8/Garrison | Garrison Relay disabled 8209 | -8/Garrison | Triggered checkpoint 8545 | -8/Garrison | Discovered new exit (range 9) 8626 | -8/Garrison | Garrison Relay disabled 8854 | -8/Garrison | Garrison Relay disabled 8887 | -8/Garrison | Discovered new exit (range 11) 8893 | -8/Garrison | Triggered checkpoint 8965 | -8/Garrison | Triggered checkpoint 8972 | -8/Garrison | Garrison Relay disabled 9157 | -8/Garrison | Triggered checkpoint 9175 | -8/Garrison | Core integrity fell below 50% 9251 | -8/Garrison | Lost 3 parts (2n1w) 9286 | -8/Garrison | Discovered new exit (range 12) 9331 | -8/Garrison | Triggered checkpoint 9376 | -8/Garrison | Garrison Relay disabled 9497 | -8/Garrison | Triggered checkpoint 9525 | -8/Garrison | Garrison Relay disabled 9530 | -8/Garrison | Build established: Scavenger-Mutant 9579 | -8/Garrison | Triggered checkpoint 9671 | -8/Garrison | Discovered new exit (range 6) 9767 | -8/Garrison | Entered Materials 9767 | -8/Materials | Accompanied by 3 allies 10167 | -8/Materials | First assault squad dispatched 10974 | -8/Materials | Discovered new exit (range 5) 11052 | -8/Materials | Identified exit to Garrison 11052 | -8/Materials | Entered Garrison 11098 | -8/Garrison | Triggered checkpoint 11157 | -8/Garrison | Garrison Relay disabled 11558 | -8/Garrison | Triggered checkpoint 11590 | -8/Garrison | Garrison Relay disabled 11704 | -8/Garrison | Discovered new exit (range 12) 11831 | -8/Garrison | Triggered checkpoint 11922 | -8/Garrison | Triggered checkpoint 11981 | -8/Garrison | Lost 3 parts (1p2u) 11988 | -8/Garrison | Discovered new exit (range 5) 12006 | -8/Garrison | Discovered new exit (range 10) 12018 | -8/Garrison | Triggered checkpoint 12030 | -8/Garrison | Core integrity fell below 20% 12104 | -8/Garrison | Build established: Mutant 12138 | -8/Garrison | Garrison Relay disabled 12240 | -8/Garrison | Entered Factory 12240 | -7/Factory | Evolved 2 slots: Utility x1, Weapon x1 12241 | -7/Factory | Identified exit to Storage 12242 | -7/Factory | Identified exit to Lower Caves 12242 | -7/Factory | Identified exit to Factory 12243 | -7/Factory | Loaded intel: 97 trap records 13138 | -7/Factory | Entered Lower Caves 13139 | -7/Lower Caves | Encountered a Warlord checkpoint 13145 | -7/Lower Caves | Met a Warlord Commander 13146 | -7/Lower Caves | Learned location of Warlord (-4) 13147 | -7/Lower Caves | Warlord Commander delivered Encrypted Comm Array 13175 | -7/Lower Caves | Build established: Scavenger-Skirmisher 13210 | -7/Lower Caves | Attracted the attention of an 0b10 checkpoint 13558 | -7/Lower Caves | Found DRS Beacon 14723 | -7/Lower Caves | Attracted the attention of an 0b10 base 14861 | -7/Lower Caves | Build established: Skirmisher 14866 | -7/Lower Caves | Identified exit to Lower Caves 14866 | -7/Lower Caves | Learned location of 1 exit from Lower Caves 14866 | -7/Lower Caves | Learned location of 2 exits from Upper Caves 14866 | -7/Lower Caves | Learned location of 1 exit from Proximity Caves 14866 | -7/Lower Caves | Learned Factory emergency access door positions 14960 | -7/Lower Caves | Attacked by a faux Warlord 15141 | -7/Lower Caves | Entered another Lower Caves area 15141 | -7/Lower Caves | Accompanied by 2 allies 15143 | -7/Lower Caves | Identified exit to Zion 15177 | -7/Lower Caves | Build established: Tank 15178 | -7/Lower Caves | Encountered a Warlord checkpoint 15181 | -7/Lower Caves | Learned Factory terminal intel 16338 | -7/Lower Caves | Entered Zion 16338 | -7/Zion | Accompanied by 1 ally 16418 | -7/Zion | Identified exit to Proximity Caves 16497 | -7/Zion | Given the Hacking Drone Bay 16497 | -7/Zion | Found Prototype Device 16596 | -7/Zion | Acquired unknown access codes intercepted by a Zionite 16707 | -7/Zion | Given A8's code to call for help 17064 | -7/Zion | Received a visual enhancement algorithm 17065 | -7/Zion | Ran a visual enhancement algorithm 17402 | -7/Zion | Found Prototype Processor 17402 | -7/Zion | Identified Exp. Terrain Scan Processor 17409 | -7/Zion | Found Exp. Terrain Scan Processor 17414 | -7/Zion | Found Prototype Processor 17414 | -7/Zion | Identified Exp. Core Analyzer 17423 | -7/Zion | Found Prototype Processor 17423 | -7/Zion | Identified Exp. Target Analyzer 17426 | -7/Zion | Found Prototype Processor 17426 | -7/Zion | Identified Exp. Melee Analysis Suite 17755 | -7/Zion | Enhanced Grunt warped into view, answering call for help 17770 | -7/Zion | Enhanced Grunt warped into view, answering call for help 17773 | -7/Zion | Opened final containment barrier to the Deep Caves 17794 | -7/Zion | Discovered new exit (range 3) 17794 | -7/Zion | Saw the warning signs outside the Deep Caves entrance 17809 | -7/Zion | Entered Deep Caves 17809 | -7/Deep Caves | Accompanied by 3 allies 18069 | -7/Deep Caves | Attacked by Z-Imprinter 18081 | -7/Deep Caves | Allies destroyed Z-Imprinter 18384 | -7/Deep Caves | Found Prototype Protection 18384 | -7/Deep Caves | Identified Zio. Weapon Casing 18405 | -7/Deep Caves | Build established: Scavenger-Tank 18505 | -7/Deep Caves | Z-Facility disabled 18529 | -7/Deep Caves | Found Zio. Weapon Casing 18598 | -7/Deep Caves | Found Prototype Protection 18598 | -7/Deep Caves | Identified Zio. Heavy Carapace 18964 | -7/Deep Caves | Discovered new exit (range 6) 19489 | -7/Deep Caves | Found Zio. Heavy Carapace 19562 | -7/Deep Caves | Found Zio. Weapon Casing 19609 | -7/Deep Caves | Found Zio. Weapon Casing 19611 | -7/Deep Caves | Found Zio. Weapon Casing 19661 | -7/Deep Caves | Found Zio. Weapon Casing 19909 | -7/Deep Caves | Build established: Scavenger-Mutant 20269 | -7/Deep Caves | Spotted AG-99442 20300 | -7/Deep Caves | Destroyed AG-99442 20307 | -7/Deep Caves | Found GOLEM Unit 20375 | -7/Deep Caves | Spotted AG-40484 20405 | -7/Deep Caves | Build established: Mutant 20421 | -7/Deep Caves | Destroyed AG-40484 20424 | -7/Deep Caves | Found GOLEM Unit 20431 | -7/Deep Caves | Found Prototype Energy Cannon 20431 | -7/Deep Caves | Identified Latent Energy Streamer 20670 | -7/Deep Caves | Identified Hacking Drone Bay 20916 | -7/Deep Caves | Build established: Scavenger-Tank 21448 | -7/Deep Caves | Triggered Deep Caves wall 21448 | -7/Deep Caves | Exposed GOLEM chamber 21455 | -7/Deep Caves | Destroyed AS-44956 21476 | -7/Deep Caves | Spotted AS-48053 21484 | -7/Deep Caves | Destroyed AS-48053 21511 | -7/Deep Caves | Destroyed 37 combat bots 21575 | -7/Deep Caves | Found GOLEM Unit 21605 | -7/Deep Caves | Found GOLEM Unit 21608 | -7/Deep Caves | Found GOLEM Unit 21633 | -7/Deep Caves | Found GOLEM Unit 21668 | -7/Deep Caves | Found GOLEM Unit 21682 | -7/Deep Caves | Found GOLEM Unit 21970 | -7/Deep Caves | Build established: Scavenger-Golem 22492 | -7/Deep Caves | Entered Proximity Caves 22651 | -6/Proximity Caves | Build established: Tank 23029 | -6/Proximity Caves | Spotted B-75 Beast 23031 | -6/Proximity Caves | Attracted the attention of an 0b10 checkpoint 23037 | -6/Proximity Caves | Core integrity fell below 50% 23041 | -6/Proximity Caves | Destroyed B-75 Beast 23287 | -6/Proximity Caves | Found Alien Artifact 23939 | -6/Proximity Caves | Entered Factory 23939 | -6/Factory | Evolved 2 slots: Power x1, Propulsion x1 23940 | -6/Factory | Identified exit to Factory 23940 | -6/Factory | Identified exit to Lower Caves 23940 | -6/Factory | Identified exit to Extension 23942 | -6/Factory | Loaded intel: 28 terminal locations 24482 | -6/Factory | Discovered exit to Extension (range 6) 24487 | -6/Factory | Entered Extension 24858 | -6/Extension | Rescued a captive Derelict 24859 | -6/Extension | Rescued a captive Derelict 24957 | -6/Extension | Identified exit to Cetus 24994 | -6/Extension | Learned 2 Proximity Caves zone layouts 25020 | -6/Extension | Learned location of 1 exit from Proximity Caves 25059 | -6/Extension | Learned location of 1 exit from Cetus 25086 | -6/Extension | Rescued a captive Derelict 25094 | -6/Extension | Learned location of 1 exit from Upper Caves 25108 | -6/Extension | Rescued a captive Derelict 25346 | -6/Extension | Spotted B-75 Beast 25361 | -6/Extension | Destroyed B-75 Beast 25364 | -6/Extension | Spotted B-75 Beast 25379 | -6/Extension | Destroyed B-75 Beast 25422 | -6/Extension | Lost 7 allies 25486 | -6/Extension | Rescued a captive Derelict 25733 | -6/Extension | Repaired IFF Parser 25782 | -6/Extension | Rescued A7 25823 | -6/Extension | Repaired Exp. Heat Sink 25886 | -6/Extension | Rescued a captive Derelict 25887 | -6/Extension | Rescued a captive Derelict 25905 | -6/Extension | Rescued a captive Derelict 26133 | -6/Extension | Build established: Commander-Tank 26499 | -6/Extension | Entered Cetus 26499 | -6/Cetus | Accompanied by 17 allies (A7) 26504 | -6/Cetus | Acquired a Cetus Manufacturing Module code from A7 26519 | -6/Cetus | Spotted Cetus Guard 26519 | -6/Cetus | Spotted Cetus Guard 26522 | -6/Cetus | Spotted Cetus Guard 26522 | -6/Cetus | Spotted Cetus Guard 26528 | -6/Cetus | Allies destroyed Cetus Guard 26536 | -6/Cetus | Allies destroyed Cetus Guard 26536 | -6/Cetus | Destroyed Cetus Guard 26537 | -6/Cetus | Allies destroyed Cetus Guard 26644 | -6/Cetus | Started Cetus Manufacturing Module 26656 | -6/Cetus | Escorted A7 to Cetus Mainframe 26669 | -6/Cetus | Manufactured an Enhanced Grunt 26675 | -6/Cetus | Discovered new exit (range 16) 26694 | -6/Cetus | Manufactured an Enhanced Grunt 26697 | -6/Cetus | Spotted Cetus Guard 26698 | -6/Cetus | Spotted Cetus Guard 26701 | -6/Cetus | Destroyed Cetus Guard 26706 | -6/Cetus | Allies destroyed Cetus Guard 26707 | -6/Cetus | Spotted Cetus Guard 26711 | -6/Cetus | Destroyed Cetus Guard 26712 | -6/Cetus | Spotted Cetus Guard 26714 | -6/Cetus | Destroyed Cetus Guard 26719 | -6/Cetus | Manufactured an Enhanced Grunt 26733 | -6/Cetus | Met Revision 17 26744 | -6/Cetus | Manufactured an Enhanced Grunt 26769 | -6/Cetus | Manufactured an Enhanced Grunt 26876 | -6/Cetus | Entered Archives 26876 | -6/Archives | Accompanied by 20 allies (A7) 26881 | -6/Archives | Received a hacking code to weaken MAIN.C 26920 | -6/Archives | Discovered exit to Factory (range 16) 26929 | -6/Archives | Discovered new exit (range 15) 26999 | -6/Archives | Entered Hub_04(d) 26999 | -6/Hub_04(d) | Accompanied by 19 allies 27006 | -6/Hub_04(d) | Discovered exit to Factory (range 16) 27112 | -6/Hub_04(d) | Destroyed 8 combat bots 27152 | -6/Hub_04(d) | Discovered exit to Factory (range 13) 27203 | -6/Hub_04(d) | Discovered exit to Factory (range 7) 27269 | -6/Hub_04(d) | Network Hub disabled 27274 | -6/Hub_04(d) | Entered Factory 27274 | -5/Factory | Accompanied by 8 allies 27274 | -5/Factory | Evolved 2 slots: Utility x2 27275 | -5/Factory | Identified exit to Upper Caves 27295 | -5/Factory | Murdered 4 allies 27301 | -5/Factory | Lost 5 allies 27557 | -5/Factory | Build established: Commander-Golem 27640 | -5/Factory | Identified exit to Garrison 27654 | -5/Factory | Entered Garrison 27654 | -5/Garrison | Accompanied by 6 allies 27696 | -5/Garrison | Triggered checkpoint 27726 | -5/Garrison | Garrison Relay disabled 27810 | -5/Garrison | Phase Generator disabled 27880 | -5/Garrison | Triggered checkpoint 27958 | -5/Garrison | System corruption reached 10% 27971 | -5/Garrison | Lost 3 allies 28004 | -5/Garrison | Discovered new exit (range 9) 28088 | -5/Garrison | Triggered checkpoint 28125 | -5/Garrison | Garrison Relay disabled 28175 | -5/Garrison | Build established: Scavenger-Golem 28318 | -5/Garrison | Triggered checkpoint 28448 | -5/Garrison | Triggered checkpoint 28501 | -5/Garrison | Spotted Executioner 28534 | -5/Garrison | Destroyed Executioner 28544 | -5/Garrison | Rewired Striker 28609 | -5/Garrison | Rewired Executioner 28635 | -5/Garrison | Found Prototype Device 28635 | -5/Garrison | Identified Adv. Kinecellerator 28689 | -5/Garrison | Discovered new exit (range 3) 28738 | -5/Garrison | Garrison Relay disabled 28908 | -5/Garrison | Triggered checkpoint 28945 | -5/Garrison | Triggered checkpoint 29018 | -5/Garrison | Triggered checkpoint 29050 | -5/Garrison | Garrison Relay disabled 29135 | -5/Garrison | Discovered new exit (range 8) 29327 | -5/Garrison | Entered Factory 29327 | -5/Factory | Accompanied by 2 allies 29350 | -5/Factory | Garrison activated, responded to threat 29670 | -5/Factory | Found Corrupted Exp. Core Analyzer 29967 | -5/Factory | Identified exit to Factory 30215 | -5/Factory | Spotted B-75 Beast 30320 | -5/Factory | Destroyed B-75 Beast 30375 | -5/Factory | Identified exit to Garrison 30375 | -5/Factory | Entered Garrison 30411 | -5/Garrison | Triggered checkpoint 30498 | -5/Garrison | Garrison Relay disabled 30500 | -5/Garrison | Garrison Relay disabled 30515 | -5/Garrison | Garrison Relay disabled 30582 | -5/Garrison | Garrison Relay disabled 30588 | -5/Garrison | Garrison Relay disabled 30763 | -5/Garrison | System corruption reached 30% 30877 | -5/Garrison | Triggered checkpoint 31085 | -5/Garrison | Triggered checkpoint 31172 | -5/Garrison | Garrison Relay disabled 31275 | -5/Garrison | Discovered new exit (range 10) 31291 | -5/Garrison | Phase Generator disabled 31420 | -5/Garrison | Triggered checkpoint 31513 | -5/Garrison | Triggered checkpoint 31611 | -5/Garrison | Garrison Relay disabled 31633 | -5/Garrison | Discovered new exit (range 8) 31745 | -5/Garrison | Triggered checkpoint 31896 | -5/Garrison | Garrison Relay disabled 31966 | -5/Garrison | Discovered new exit (range 10) 31972 | -5/Garrison | Spotted Executioner 32111 | -5/Garrison | Spotted Executioner 32119 | -5/Garrison | Destroyed Executioner 32123 | -5/Garrison | Destroyed Executioner 32165 | -5/Garrison | Rewired Executioner 32175 | -5/Garrison | Rewired Executioner 32207 | -5/Garrison | Entered Factory 32207 | -5/Factory | Accompanied by 2 allies 32780 | -5/Factory | Spotted B-75 Beast 32785 | -5/Factory | Destroyed Executioner 32792 | -5/Factory | Destroyed B-75 Beast 32856 | -5/Factory | Discovered exit to Factory (range 12) 33199 | -5/Factory | Core integrity fell below 50% 33272 | -5/Factory | Identified exit to Garrison 33272 | -5/Factory | Entered Garrison 33503 | -5/Garrison | Triggered checkpoint 33582 | -5/Garrison | Triggered checkpoint 33699 | -5/Garrison | Garrison Relay disabled 33810 | -5/Garrison | Destroyed 7 combat bots 33960 | -5/Garrison | Triggered checkpoint 33966 | -5/Garrison | Garrison Relay disabled 34009 | -5/Garrison | Discovered new exit (range 15) 34143 | -5/Garrison | Triggered checkpoint 34296 | -5/Garrison | Triggered checkpoint 34332 | -5/Garrison | Garrison Relay disabled 34347 | -5/Garrison | Discovered new exit (range 8) 34450 | -5/Garrison | Triggered checkpoint 34604 | -5/Garrison | Triggered checkpoint 34628 | -5/Garrison | Garrison Relay disabled 34729 | -5/Garrison | Discovered new exit (range 10) 34778 | -5/Garrison | Entered Factory 34778 | -5/Factory | Accompanied by 3 allies 35094 | -5/Factory | Discovered exit to Upper Caves (range 5) 35111 | -5/Factory | Entered Upper Caves 35111 | -5/Upper Caves | Accompanied by 2 allies 35112 | -5/Upper Caves | Identified exit to Upper Caves 35167 | -5/Upper Caves | Learned Factory terminal intel 35172 | -5/Upper Caves | Encountered a Warlord checkpoint 35422 | -5/Upper Caves | Attracted the attention of an 0b10 checkpoint 35889 | -5/Upper Caves | Entered another Upper Caves area 35890 | -5/Upper Caves | Identified exit to Zhirov 35928 | -5/Upper Caves | Learned location of Armory (-4) 36507 | -5/Upper Caves | Entered Zhirov 36509 | -5/Zhirov | Discovered new exit (range 3) 36531 | -5/Zhirov | Met Zhirov 36554 | -5/Zhirov | Learned location of Quarantine (-2) 36554 | -5/Zhirov | Learned location of Command (-1) 36566 | -5/Zhirov | Zhirov requested help retrieving the SGEMP Prototype 36591 | -5/Zhirov | Found Alien Artifact 36591 | -5/Zhirov | Identified Integrated Reactor 36591 | -5/Zhirov | Installed Integrated Reactor, increased core energy generation (+10) 36608 | -5/Zhirov | Found Alien Artifact 37243 | -5/Zhirov | Entered Proximity Caves 37393 | -4/Proximity Caves | Spotter reported a threat 37429 | -4/Proximity Caves | Spotter reported a threat 37499 | -4/Proximity Caves | Spotter reported a threat 37525 | -4/Proximity Caves | Spotter reported a threat 37617 | -4/Proximity Caves | Learned Research terminal intel 37751 | -4/Proximity Caves | Entered Factory 37751 | -4/Factory | Evolved 2 slots: Utility x2 37752 | -4/Factory | Identified exit to Research 37753 | -4/Factory | Loaded intel: 26 terminal locations 38001 | -4/Factory | Search patrols dispatched 38105 | -4/Factory | Identified exit to Upper Caves 38105 | -4/Factory | Identified exit to Armory 38131 | -4/Factory | Garrison activated, responded to threat 38146 | -4/Factory | Fabricated Hcp. Storage Unit (x1) 38251 | -4/Factory | Search patrols dispatched 38336 | -4/Factory | Discovered exit to Research (range 11) 38451 | -4/Factory | Build established: Hacker-Tank 38531 | -4/Factory | Entered Upper Caves 39012 | -4/Upper Caves | Attracted the attention of an 0b10 checkpoint 39087 | -4/Upper Caves | Build established: Scavenger-Skirmisher 39183 | -4/Upper Caves | Discovered new exit (range 15) 39404 | -4/Upper Caves | A Derelict revealed a hidden shortcut to "reach the base" 39798 | -4/Upper Caves | Entered another Upper Caves area 39804 | -4/Upper Caves | Discovered exit to Research (range 14) 40255 | -4/Upper Caves | Spotted B-86 Titan 40260 | -4/Upper Caves | Discovered new exit (range 22) 40276 | -4/Upper Caves | Encountered a Warlord checkpoint 40450 | -4/Upper Caves | Learned 12 Research zone layouts 40635 | -4/Upper Caves | Entered Warlord 40926 | -4/Warlord | Found Prototype Device 40926 | -4/Warlord | Identified Exp. Focal Shield 40930 | -4/Warlord | Found Prototype Processor 40930 | -4/Warlord | Identified Exp. Armor Integrity Analyzer 40939 | -4/Warlord | Found Prototype Hackware 40958 | -4/Warlord | Found Prototype Reactor 41203 | -4/Warlord | Build established: Scavenger-Golem 41220 | -4/Warlord | Met Warlord 41245 | -4/Warlord | Warlord's base attacked by MAIN.C 41370 | -4/Warlord | Found Prototype Energy Cannon 41370 | -4/Warlord | Identified Vortex Cannon 41432 | -4/Warlord | Learned Quarantine trap positions 41432 | -4/Warlord | Learned Research stockpile data 41433 | -4/Warlord | Learned 4 Armory zone layouts 41433 | -4/Warlord | Learned 4 Armory zone layouts 41435 | -4/Warlord | Learned Armory security intel 41435 | -4/Warlord | Learned Factory repair station intel 41435 | -4/Warlord | Learned Research terminal intel 41595 | -4/Warlord | Warlord forces counterattacked 41643 | -4/Warlord | Spotted Executioner 41679 | -4/Warlord | Spotted Striker 41700 | -4/Warlord | Spotted Executioner 41705 | -4/Warlord | Destroyed Executioner 41739 | -4/Warlord | Spotted Striker 41743 | -4/Warlord | Spotted Executioner 41750 | -4/Warlord | Destroyed 25 combat bots 41765 | -4/Warlord | Destroyed Executioner 41815 | -4/Warlord | Destroyed 10 combat bots 41817 | -4/Warlord | Lost 24 allies 41828 | -4/Warlord | Spotted Striker 41875 | -4/Warlord | Lost 5 allies 41914 | -4/Warlord | Spotted Striker 41920 | -4/Warlord | Warlord base infiltrated, sounded retreat 41979 | -4/Warlord | Lost 3 allies 42181 | -4/Warlord | Spotted Executioner 42187 | -4/Warlord | Destroyed Executioner 42201 | -4/Warlord | Spotted Executioner 42203 | -4/Warlord | Spotted Striker 42208 | -4/Warlord | Destroyed 7 combat bots 42208 | -4/Warlord | Destroyed Executioner 42225 | -4/Warlord | Attacked by Warlord forces 42227 | -4/Warlord | Spotted L3-07V(K) 42240 | -4/Warlord | Discovered new exit (range 18) 42253 | -4/Warlord | Lost 6 allies 42263 | -4/Warlord | Entered Proximity Caves 42263 | -3/Proximity Caves | Accompanied by 1 ally 42266 | -3/Proximity Caves | Spotter reported a threat 42266 | -3/Proximity Caves | Spotter reported a threat 42319 | -3/Proximity Caves | Spotter reported a threat 42372 | -3/Proximity Caves | Spotter reported a threat 42432 | -3/Proximity Caves | Spotter reported a threat 42603 | -3/Proximity Caves | Build established: Golem 42699 | -3/Proximity Caves | Spotted B-86 Titan 43053 | -3/Proximity Caves | Entered Research 43053 | -3/Research | Accompanied by 1 ally 43053 | -3/Research | Evolved 2 slots: Propulsion x1, Utility x1 43054 | -3/Research | Identified exit to Testing 43057 | -3/Research | Loaded intel: 20 terminal locations 43253 | -3/Research | Revision forces began assault on 0b10 43285 | -3/Research | Met up with Revision 17++ 43753 | -3/Research | Research terminal network offline 43806 | -3/Research | Entered Testing 43934 | -3/Testing | Identified Ghost Barrier 43951 | -3/Testing | Identified Vortex Chain Reactor 43954 | -3/Testing | Found Prototype Ballistic Cannon 44056 | -3/Testing | Search patrols dispatched 44196 | -3/Testing | Found Prototype Energy Gun 44196 | -3/Testing | Identified Warp Gun 44264 | -3/Testing | Found Gamma Bomb Array 44512 | -3/Testing | Found Prototype Protection 44512 | -3/Testing | Identified Hvy. Regenerative Plating 44580 | -3/Testing | Found Prototype Energy Gun 44580 | -3/Testing | Identified Hyp. EM Gauss Rifle 44651 | -3/Testing | Found Prototype Device 44651 | -3/Testing | Identified AEGIS Remote Shield 44836 | -3/Testing | Discovered new exit (range 22) 44947 | -3/Testing | Entered Research 44947 | -2/Research | Warlord forces began assault on 0b10 44947 | -2/Research | Evolved 2 slots: Power x1, Utility x1 44948 | -2/Research | Loaded intel: 23 terminal locations 45046 | -2/Research | Discovered new exit (range 18) 45057 | -2/Research | Research machine network offline 45079 | -2/Research | Identified exit to Access 45146 | -2/Research | Discovered new exit (range 14) 45160 | -2/Research | Identified exit to Quarantine 45163 | -2/Research | Identified Omega Cannon 45270 | -2/Research | Entered Quarantine 45271 | -2/Quarantine | Loaded intel: 17 trap records 45285 | -2/Quarantine | Found Alien Artifact 45340 | -2/Quarantine | Found Alien Artifact 45366 | -2/Quarantine | Cryocooling Duct disabled 45381 | -2/Quarantine | Ambient heat levels rising (+20) 45381 | -2/Quarantine | Non-combat units ordered to evacuate 45394 | -2/Quarantine | Scanned by Researcher 45396 | -2/Quarantine | Discovered exit to Access (range 19) 45794 | -2/Quarantine | Met incapacitated Sigix Warrior 45794 | -2/Quarantine | Lockdown squad dispatched 45811 | -2/Quarantine | Acquired the access code to the Sigix quarantine chamber 45813 | -2/Quarantine | Unlocked Sigix quarantine chamber 45817 | -2/Quarantine | Found Sigix Containment Pod 45919 | -2/Quarantine | Found Alien Artifact 45984 | -2/Quarantine | Spotted Lightning 45987 | -2/Quarantine | Spotted Lightning 45997 | -2/Quarantine | Identified Core Reset Matrix 45997 | -2/Quarantine | Identified Transdimensional Reconstructor 46034 | -2/Quarantine | Spotted Alpha 7 46059 | -2/Quarantine | Destroyed Alpha 7 46086 | -2/Quarantine | Found Prototype Device 46086 | -2/Quarantine | Identified Exp. ECM Suite 46092 | -2/Quarantine | Found Prototype Processor 46092 | -2/Quarantine | Identified Exp. Targeting Computer 46256 | -2/Quarantine | Found Alien Impact Weapon 46404 | -2/Quarantine | System corruption reached 10% 46408 | -2/Quarantine | Cryocooling Duct disabled 46423 | -2/Quarantine | Ambient heat levels rising (+20) 46423 | -2/Quarantine | Combat units ordered to evacuate 46523 | -2/Quarantine | Quarantine Guard activated 46533 | -2/Quarantine | Spotted Quarantine Guard 46533 | -2/Quarantine | Spotted Quarantine Guard 46558 | -2/Quarantine | Spotted Quarantine Guard 46561 | -2/Quarantine | Spotted Quarantine Guard 46590 | -2/Quarantine | Spotted Quarantine Guard 46592 | -2/Quarantine | Spotted Quarantine Guard 46595 | -2/Quarantine | Spotted Quarantine Guard 46595 | -2/Quarantine | Spotted Quarantine Guard 46597 | -2/Quarantine | Spotted Quarantine Guard 46597 | -2/Quarantine | Warped through subspace 46633 | -2/Quarantine | Spotted Quarantine Guard 46662 | -2/Quarantine | Found Alien Artifact 46670 | -2/Quarantine | Found Alien Artifact 46670 | -2/Quarantine | Identified Dimensional Node Initializer (x2) 46670 | -2/Quarantine | Initialized slip node 46697 | -2/Quarantine | Destroyed Quarantine Guard 46739 | -2/Quarantine | Destroyed Quarantine Guard 46786 | -2/Quarantine | Destroyed Quarantine Guard 46866 | -2/Quarantine | Destroyed Quarantine Guard 46882 | -2/Quarantine | Spotted Quarantine Guard 46886 | -2/Quarantine | Destroyed Quarantine Guard 46900 | -2/Quarantine | Destroyed Quarantine Guard 46916 | -2/Quarantine | Identified Subatomic Replicator 46916 | -2/Quarantine | Identified Hpw. Transdimensional Reconstructor 46916 | -2/Quarantine | Identified Core Stripper 46916 | -2/Quarantine | Used Core Reset Matrix 46920 | -2/Quarantine | Sensed 3 artifacts in vicinity 46925 | -2/Quarantine | Lost 5 parts (1p1n2u1w) 47019 | -2/Quarantine | Destroyed Quarantine Guard 47202 | -2/Quarantine | Destroyed Quarantine Guard 47926 | -2/Quarantine | Spotted Fortress 47935 | -2/Quarantine | Destroyed Fortress 47946 | -2/Quarantine | Found Prototype Device 47946 | -2/Quarantine | Identified Thermal Barrier 47950 | -2/Quarantine | Found Prototype Device 47950 | -2/Quarantine | Identified Exp. Force Field 47956 | -2/Quarantine | Found Prototype Device 47956 | -2/Quarantine | Identified Exp. EM Shield 47960 | -2/Quarantine | Found Prototype Reactor 47960 | -2/Quarantine | Identified Vortex Chain Reactor 47963 | -2/Quarantine | Found Vortex Chain Reactor 48272 | -2/Quarantine | Discovered new exit (range 5) 48272 | -2/Quarantine | Discovered new exit (range 6) 48277 | -2/Quarantine | Entered Section 7 48278 | -2/Section 7 | Detected hypermatrix surge 48278 | -2/Section 7 | Sensed 21 artifacts in vicinity 48318 | -2/Section 7 | Spotted S7 Guard 48330 | -2/Section 7 | Found Core Membrane 48330 | -2/Section 7 | Installed Core Membrane, gained immunity to corruption 48481 | -2/Section 7 | Spotted S7 Guard 48490 | -2/Section 7 | Found Integrated Thermoelectric Network 48490 | -2/Section 7 | Installed Integrated Thermoelectric Network, gained heat-energy exchange potential 48510 | -2/Section 7 | Found Integrated Dissipator 48510 | -2/Section 7 | Installed Integrated Dissipator, increased core heat dissipation (+20) 48604 | -2/Section 7 | Destroyed S7 Guard 48721 | -2/Section 7 | Found Integrity Redistributor 49027 | -2/Section 7 | Initialized slip node 49221 | -2/Section 7 | Used Integrity Redistributor, redistributed integrity from core (-215) 49238 | -2/Section 7 | Found Microwarp Drive 49277 | -2/Section 7 | First assault squad dispatched 49409 | -2/Section 7 | Spotted Executioner 49411 | -2/Section 7 | Spotted Executioner 49448 | -2/Section 7 | Destroyed Executioner 49455 | -2/Section 7 | Destroyed Executioner 49589 | -2/Section 7 | Found Prototype Device 49589 | -2/Section 7 | Identified Exp. Actuator Array 49655 | -2/Section 7 | Spotted B-99 Colossus 49658 | -2/Section 7 | Core integrity fell below 50% 49681 | -2/Section 7 | Found Integrated Dissipator 49681 | -2/Section 7 | Installed Integrated Dissipator, increased core heat dissipation (+20) 49683 | -2/Section 7 | Found Integrated Dissipator 49683 | -2/Section 7 | Installed Integrated Dissipator, increased core heat dissipation (+20) 49686 | -2/Section 7 | Found Integrated Dissipator 49686 | -2/Section 7 | Installed Integrated Dissipator, increased core heat dissipation (+20) 49738 | -2/Section 7 | Found LRC Armor 49738 | -2/Section 7 | Installed LRC Armor, increased core integrity (+250) 49749 | -2/Section 7 | Found LRC Energy Well 49749 | -2/Section 7 | Installed LRC Energy Well, increased energy storage capacity (+250) 49751 | -2/Section 7 | Used Subatomic Replicator to replicate LRC Inertial Stabilizer 49752 | -2/Section 7 | Found LRC Inertial Stabilizer 49752 | -2/Section 7 | Installed LRC Inertial Stabilizer, increased mass support (+10) 49755 | -2/Section 7 | Installed LRC Inertial Stabilizer, increased mass support (+10) 49860 | -2/Section 7 | Activated Sigix Exoskeleton 49860 | -2/Section 7 | Received instructions from Sigix Warrior 49865 | -2/Section 7 | Warped through subspace to slip node 49930 | -2/Section 7 | Entered Access 49930 | -1/Access | Accompanied by 1 ally (Sigix Warrior) 49930 | -1/Access | Evolved 2 slots: Utility x2 50180 | -1/Access | Build established: Alien-Tank 50227 | -1/Access | Energy Cycler disabled 50270 | -1/Access | Sigix Exoskeleton integrity reduced to 80% 50298 | -1/Access | Destroyed 10 combat bots 50395 | -1/Access | Discovered new exit (range 8) 50404 | *** | Destroyed 0b10! Last Messages --------------- 50381_ U-05 Engineer lays Concrete. 50382_ K-01 Serf collects debris. 50388_ Slug penetrates Wall. 50389_ Asb. Focal Cannon integration complete. 50390_ Quantum Shear penetrates Wall. 50390_ Quantum Shear penetrates H-88 Terminator. 50391_ Slug penetrates Terminal. 50393_ Synergy achieved. Target locked: H-88 Terminator. 50393_ Quantum Shear penetrates H-88 Terminator. 50395_ EXIT=FOUND 50396_ ALERT: Heavy assault forces dispatched. 50396_ The Access Shell folds into the floor. 50397_ Slug penetrates Sigix Warrior. 50397_ C-45 Heavy ARC bursts open, deploying its payload. 50397_ G-73 Enforcer unfolds itself. 50398_ Slug penetrates Sigix Warrior. [Achievement: 100k Club] [Achievement: Collector] [Achievement: Death Machine] [Achievement: Partners In Destruction] Map ----- +----------------------------------------------------+ | ????????? ?? # ? + ########""##" "## # | | ??????????" ?? # ######### ! # " =#% | | ????????"""? # #?######### %#[#=|%=[ # | | ???????? ??? ####### ######### ""G" %/!=[=[/[[ | | ??????? ?? #######+######### " "! !#[= /%=! | | ??????? ### ##### " !!%!!*!= | | ??????? ##? ####" % ![%[%!! | | ?????? ? ? ### ### " " *!==!=! # | | ??????? ? ### ##### !%=#! ## | | ????????? ?#################""###""""#!=###### | | ????##?++#######################;#"""### ! ##### | | ????? ##### | | ?????? gh ! ##### | | ????? ??############ " ;#####"## ##### | | ????? ?## ?? ?## "### # ######### | | ????? ## ? ### ""### # ######### | | ????? ## ? ### T### # ######### | | ????? ## ### ""##" # ######### | | ???#? #? ?### ""### # ######### | | ????# #? ? ### X""### # | | ???# # """"? ## ##!!! + | | ??? ? # """"" ### ###!! # | | ????? + """"" ### ###!! ########### | | ????? ? # ??""" ?### ### # ###### | | ?????+###? """"" ### ### # ###### | | ???? ? ?? """""? ### @" ### # ###### | | ????? # ### "" ####" ### + | | ????? # ### ######### ###### | | ???? ? # ? ? ### ######### ###### | | ??? ??? # ? ### ######### ###### | | ?????? #############""""""""""######### ##?### | | ???"??? ##???#####?##""?"""""""?################## | | ????"?? #?#####??##?#""""""""?"##################? | | ??????? #?##??#######"?""""""""######## ??# | | ??????#?#########?#?# ######## ?#? | | ???????###?##?###?##???? ######## ??? ?? | | ?????????#?####?##??# ? ? #?####?# ? ? ?? ?? | | ????????#??########## ? ? #??#####? ?? ???? | | ?????? ???##?####??## ? ? ? ###???##? "?"????? | | ???????#?##???#?#??## ?#######? ?"??????? | | ????????#???##???##?#? ? ????#?##?#?? ?"??????? | | ???????????#?#?#?#?###?# ? ?##?###?##??/#?##?????? | | ?????????????#?#??###?##????# ??""T""? ?#???????? | | ???????????? ?? ? ?#? ?# """ "?? ? ????????? | | ?????????????????? ?? # ? ? ? ????? ?? ????????? | | ??????????????? ???????? ? ?# ?? ? ? ?????????? | | ???????????????? ??????? ????????? " ???????????? | | ??????????????????? ?? # ?? ?? ? ????????????????? | | ???????????????????? ??#? ? ? ???????????????????? | | ?????????????????????????? ??????????????????????? | +----------------------------------------------------+ Best States ------------- Heat Dissipation 132 Coolant Potential 120 Energy Generation 89 Energy Capacity 2550 Matter Stores 590 Matter Capacity 600 Sight Range 23 Terrain Scan Range 24 Terrain Scan Density 1010 Jamming Range 12 Additional Mass Support 20 EM Shielding 4 Armor Coverage 1200 Resistance: KI 30 Resistance: TH 15 Resistance: EX 15 Resistance: EM 75 Resistance: I 15 Resistance: S 15 Resistance: P 15 Weapon Shielding 100 Weapon Cycling 15 Phase Shifting 8 Evasion (%) 90 Targeting Accuracy 8 Core Analysis 8 Recoil Reduction 4 Particle Charging 25 Salvage Targeting 2 Offensive Hacking 22 Item Schematics ----------------- None Robot Schematics ------------------ None Fabricated ------------ Hcp. Storage Unit | x1 | -4/Factory Repaired ---------- IFF Parser | 25% | -6/Extension Exp. Heat Sink | 10% | -6/Extension Studied --------- Centrium Leg | -2/Section 7 | Hacked Gamma Bomb Array | -2/Section 7 | Hacked Myomer Leg | -2/Section 7 | Hacked Alien Tech Used ----------------- Integrated Reactor Transdimensional Reconstructor Dimensional Node Initializer Core Reset Matrix Core Stripper Core Membrane Integrated Thermoelectric Network Integrated Dissipator Integrity Redistributor Microwarp Drive LRC Armor LRC Energy Well Subatomic Replicator LRC Inertial Stabilizer High-powered Transdimensional Reconstructor Achievements -------------- 100k Club Are We The Baddies? Artifact Hunter Boltbath Bullet Installation Collector Construction Begets Destruction Death Machine Everyone Must Die Explosive Keycard Express Service Fancy Inventory Help From High Places Hornet's Nest King Drone Network Effect Partners In Destruction Partsplosion Suspicious That's One Door That Should Stay Closed Well-fed Force Field Challenges ------------ None Game ------ Seed PowerZipSuite Manual? 0 Play Time 08:35:53 Cumulative 235.4 hours Start 2025.10.31 @ 01:44:46 End 2025.11.15 @ 03:08:28 Sessions 14 Manual Loads 0 Difficulty Rogue Special Mode None Game No. 99 Rogue 99 Adventurer 0 Explorer 0 Win Type 3 Total 22 Types 7/3/5/2/1/0/0/1/1/2 Lore% 77 Gallery% 75 Achievement% 50 Wizard Run 0 Options --------- Layout 0 ASCII 0 Keyboard 1 Movement Vi Keybinds 0 Fullscreen 2 Font 18/SmallcapsGlow Map View 76x50 Zoom Use 0% Tactical HUD 1 Map Filters NONE Filters NONE Steam 1 RUN: 65089483-0395-413a-a3f4-dfec4c8f6442